{"text_format":"1","workbook":"xlsx","n_sheets":24,"sheets":["Cover Page","Contents","Facility Info","Operational Data","Operational Summary","Perf. Form 1","Energy Form 1","Permit Compliance","Improvements","Public Liasion","CO2 N2O","Residue Quality ","Water","Air (periodic)","Air (CEMS)","HCl","SO2","NOx","TOC","Particulates","CO 0.5hourly","CO 95% 10 min","NH3","HF"],"not_rendered":{"charts":9,"images":3,"macros":1,"external_links":0,"defined_names":24,"comments":0,"pivot_tables":0},"unopened":[],"bounds":{"document_bytes":16777216,"sheet_cells":100000,"rows_first":2000,"rows_last":500,"rows_between":2000,"halvings":0,"cell_chars":16384,"cell_head_chars":4096},"cells_cut":0,"cells_raw":0,"read":"whole","date_system":"1900"}

{"sheet":"Cover Page","index":0,"n_rows":54,"n_cols":14,"rows_kept":54,"cut":false,"hidden":false,"merged":[[14,13,19,15],[35,1,35,8],[0,3,5,6],[8,1,24,8],[29,1,29,8],[31,1,31,8],[33,1,33,8],[49,2,49,3],[49,6,49,8],[53,2,53,3],[37,1,37,8],[41,2,41,8],[43,2,43,4],[45,2,45,4],[47,2,47,3],[47,6,47,8]]}
[null,null,null,"Add company logo"]
[null,null,null,null,null,null,null,null,null,null,null,null,null,"Version 22.3  30/11/22"]
[]
[]
[]
[]
[]
[]
[]
[]
[]
[]
[]
[null,null,null,null,null,null,null,null,null,null,null,null,null,"Notes:"]
[null,null,null,null,null,null,null,null,null,null,null,null,null,"This template may require adjustments by individual operators to meet specific reporting requirements as defined in the site Permit(s)"]
[]
[]
[]
[]
[]
[]
[]
[]
[]
[]
[]
[]
[]
[]
[null,"Annual Performance Report 2022"]
[]
[null,"Permit EPR/GP3433GH"]
[]
[null,"Cornwall Energy Recovery Centre"]
[]
[]
[]
[null,"SUEZ Recycling and Recovery UK Ltd"]
[]
[null,"Year:",2022]
[]
[null,"Address:","St Dennis, St Austell, Cornwall, PL26 8DY"]
[]
[null,"Tel: ","0800 093 1103"]
[]
[null,"Email: ","enquiries.uk@suez.com"]
[]
[null,"Prepared by:","Richard Watkins\nAllan Chapman",null,null,"Position:","EIR Manager\nTechnical Plant Engineer"]
[]
[null,"Approved by:","Tony Burge",null,null,"Position:","Plant Manager"]
[]
[null,"Version:",2]
[]
[null,"Issue Date:","2023-02-24"]

{"sheet":"Contents","index":1,"n_rows":54,"n_cols":11,"rows_kept":54,"cut":false,"hidden":false,"merged":[[4,10,7,14],[8,1,8,6],[3,1,3,6],[4,1,4,6],[5,1,5,6],[6,1,6,6],[7,1,7,6],[21,1,21,6],[9,1,9,6],[10,1,10,6],[11,1,11,6],[13,1,13,6],[14,1,14,6],[15,1,15,6],[16,1,16,6],[17,1,17,6],[18,1,18,6],[19,1,19,6],[20,1,20,6],[12,1,12,6],[36,1,36,6],[22,1,22,6],[23,1,23,6],[24,1,24,6],[27,1,27,6],[28,1,28,6],[29,1,29,6],[30,1,30,6],[31,1,31,6],[32,1,32,6],[35,1,35,6],[44,0,47,9],[37,1,37,6],[38,1,38,6],[39,1,39,6],[40,1,40,6],[41,1,41,6],[42,1,42,6]]}
[{"$f":"+'Cover Page'!$B$30","v":"Annual Performance Report 2022"},null,null,null,{"$f":"+'Cover Page'!$B$34","v":"Cornwall Energy Recovery Centre"}]
[]
["Contents",null,null,null,null,null,null,null,null,null,"Notes:"]
["Section","Subject",null,null,null,null,null,"Page ",null,null,"Section references and Page nos. to be inserted"]
[null,"Facility Information",null,null,null,null,null,null,null,null,"Sections and Subjects may require adjustment by individual operators to meet specific reporting requirements as defined in the sites Permit(s)"]
[null,"Operational Data"]
[null,"Operational Summary"]
[null,"Performance Form 1"]
[null,"Energy Form 1"]
[null,"Permit Compliance"]
[null,"Improvements"]
[null,"Public Liaison"]
[null,"Carbon dioxide and nitrous oxide emissions"]
[null,"Residue Quality "]
[null,"Emissions to Water"]
[null,"Emissions to Air (periodically monitored)"]
[null,"Emissions to Air (continuously monitored)"]
[null,"Hydrogen Chloride emissions"]
[null,"Sulphur Dioxide emissions"]
[null,"Oxides of Nitrogen emissions"]
[null,"Total Organic Carbon emissions"]
[null,"Particulate Matter emissions"]
[null,"Carbon Monoxide emissions"]
[null,"Ammonia emissions"]
[null,"Hydrogen Fluoride Emissions"]
[]
["Version Control"]
["Section","Information",null,null,null,null,null,"Date"]
[1,"January 2023 - original document",null,null,null,null,null,"2023-01-17"]
[2,"Amendmenst to line availabilti on Operational Data tab",null,null,null,null,null,"2023-02-24"]
[]
[]
[]
[]
["Distribution"]
["Copy","Name, Role",null,null,null,null,null,"No."]
[1,"Site Operations Team"]
[2,"Environment & Industrial Risk Team"]
[3,"Environment Agency"]
[]
[]
[]
[]
[]
["This report is required under the Industrial Emissions Directive’s Article 55(2) requirements on reporting and public information on waste incineration plants and co-incineration plants, which require the operator to produce an annual report on the functioning and monitoring of the plant and make it available to the public. "]
[]
[]
[]
[]
[]
[]
[null,null,2]
[]
[null,null,"2023-02-24"]

{"sheet":"Facility Info","index":2,"n_rows":22,"n_cols":11,"rows_kept":22,"cut":false,"hidden":false,"merged":[[4,0,17,8],[21,0,59,8],[4,10,13,13],[21,10,30,13]]}
[{"$f":"+'Cover Page'!$B$30","v":"Annual Performance Report 2022"},null,null,null,{"$f":"+'Cover Page'!$B$34","v":"Cornwall Energy Recovery Centre"}]
[]
["Plant Description and Design",null,null,null,null,null,null,null,null,null,"Notes:"]
[]
["This non-hazardous waste incinerator operates 24/7 and the environmental permit allows it to process up to 240,000 tonnes of municipal waste and commercial/Industrial waste. The plant has two furnace lines and the heat produced by waste incineration is used to raise superheated steam which generates approximately 188,000 MWh/annum of electricity.\n\nActivities associated with the incineration are receipt and storage of municipal waste and commercial/industrial waste, production of steam and electricity, abatement of flue gas and handling of Incinerator Bottom Ash (IBA) and Air Pollution Control Residue (APCR).\n\nThe data included within this report corresponds to the following period: 1st January 2022 to 31st December 2022.",null,null,null,null,null,null,null,null,null,"Include summary of plant design, design capacity, no. of combustion lines, electrical and heat capacity and any other general information that describes the facility, its location and purpose "]
[]
[]
[]
[]
[]
[]
[]
[]
[]
[]
[]
[]
[]
[]
["Summary of Operational Processes and Procedures"]
[]
["Incoming waste is delivered to site by refuse collection trucks. It is weighed in and delivered into the tipping hall.\nTIPPING HALL - A large tipping hall allows for refuse collection trucks to manoeuvre and tip waste safely. Air needed for combustion is drawn into the furnace from here so that negative pressure is maintained in order to avoid odour and dust escaping the building.\n\nBUNKER - Waste vehicles reverse to a wheel stop and tip their loads into a large concrete bunker. Mixing of waste occurs as the cranes driver sorts the waste looking for unsuitable material to be removed, and to improve the homogeneity of the incinerator feedstock.\n\nCONTROL ROOM - The plant’s control room centralises the operation of all equipment, including the grab cranes used to mix and load waste into a hopper that feeds the furnace. All on-site functions are monitored automatically and manually.  Its systems verify in real time that equipment is functioning properly, continuously monitor the combustion gas, and maximise the efficiency of the entire ERC process.\n\nGRATE AND BOILER - Waste is lifted into the charging hoppers by the crane. From here it falls into the furnace-charging chute and then is introduced onto the grate system by hydraulic feeders for incineration. Auxiliary burners can be used to help keeping the temperature above 850°C if required. The thermal energy released from the burning is used to convert water to super-heated steam along a boiler composed of 4 passes. At high pressure, this steam drives a turbine to generate electricity.\n\nELECTRICITY GENERATION - Electricity is generated at 11kv, with an electric production of approximately 180,000 MWh/annum and exporting approximately 160,000 MWh/annum to the national grid.\n\nINCINERATOR BOTTOM ASH (IBA) - Ash left on the grate after incineration is carried by conveyor, after quenching, to the IBA processing facility.  Up to 65,000 tonne of IBA is processed on site by the removal of ferrous and non-ferrous metal, stabilised and separated into fraction sizes of IBA prior to the export from site of the processed IBA and metals for re-use.\n\nAIR-COOLED CONDENSERS - After exiting the turbine, the steam is cooled and condensed back into water through air condensers. This recovered water is treated and reused in the boilers to produce more steam.\n\nEMISSION CONTROL - The gases from the furnace are subject to a rigorous cleaning process involving ammonia as selective noncatalytic reduction (SNCR), lime and active carbon injections. This removes oxides of nitrogen, acidic gases, dioxins, and heavy metals from the gas stream.\n\nAIR POLLUTION CONTROL RESIDUE (APCR) - The cleaned gas passes through fine-fabric bag filters to remove solid particles before it is emitted through the stack. The resultant APCR residue, or fly-ash, contains particles from the incineration process, lime used in the flue gas treatment, salts and carbon dust. It is stored in a sealed silo until it is taken away for recycling in tankers.\n\nEMISSIONS MONITORING - As they pass through the stack, the residual flue gases from the process are continuously monitored before release. This data is relayed automatically to the control room.",null,null,null,null,null,null,null,null,null,"Include summary of key processes and procedures such as (but not limited to); waste reception, control rooms, grate, bed and boiler, energy & heat  generation, cooling systems, residue management, emission controls, health and safety systems, maintenance"]

{"sheet":"Operational Data","index":3,"n_rows":65,"n_cols":11,"rows_kept":65,"cut":false,"hidden":false,"merged":[[52,0,56,0],[5,10,6,10],[7,10,18,10],[33,1,38,1],[3,1,3,2],[7,1,19,1],[23,1,26,1],[28,1,29,1],[30,2,30,5]]}
[{"$f":"+'Cover Page'!$B$30","v":"Annual Performance Report 2022"},null,null,null,{"$f":"+'Cover Page'!$B$34","v":"Cornwall Energy Recovery Centre"}]
[]
["Operational Data",null,null,null,null,null,null,null,null,null,"Notes:"]
["Plant Size",240000,null,"tonnes pa",86,"MWth",24,"MWe",null,null,"* - RDF to include SRF "]
["No. of combustion lines",2,null,"No. of Turbines:",null,1,null,null,null,null,"** - CHP plants only"]
[null,null,null,null,null,null,null,null,null,null,"2020 updates include;  heat in MWh, water in Litres, NCV in MJ/kg"]
["Waste types received","Unit","Q1","Q2","Q3","Q4","Year Total","%"]
["Household / Local Authority","tonnes",38751,38584,39791,37770,{"$f":"SUM(C8:F8)","v":154896},{"$f":"IF(G8>0,G8/$G$18,\"-\")","v":0.63048893664826844},null,null,"Availability Definition: 'the availability of a line is to be calculated by the number of hours the line reported Continuously Monitored emission levels to the Regulator through the calendar year divided by the total number of hours in that year. \nThe overall plant availability is calculated as the Mean of all lines in the plant. For clarity this includes periods of Other Than Normal Operating Conditions (OTNOC) and abnormal operation.'  \n\nRationale: The primary function of an Energy from Waste facility is the disposal of waste. It follows therefore that the availability of a plant is determined by the period of time a facility spends undertaking this activity."]
["Commercial & Industrial ",null,28063,10932,23425,28360,{"$f":"SUM(C9:F9)","v":90780},0.36951106335173156]
["Hazardous ",null,null,null,null,null,0,"-"]
["Clinical",null,null,null,null,null,0,"-"]
["Waste wood (biomass) ",null,null,null,null,null,0,"-"]
["Refuse Derived Fuel * - H'hold/LA",null,null,null,null,null,{"$f":"SUM(C13:F13)","v":0},"-"]
["Refuse Derived Fuel *  - C&I",null,null,null,null,null,0,"-"]
["Other [Please specify]",null,null,null,null,null,0,"-"]
["Other [Please specify]"]
["Other [Please specify]"]
["Total waste received",null,{"$f":"SUM(C8:C17)","v":66814},{"$f":"SUM(D8:D17)","v":49516},{"$f":"SUM(E8:E17)","v":63216},{"$f":"SUM(F8:F17)","v":66130},{"$f":"SUM(G8:G17)","v":245676},1]
["Rejected Waste ",null,null,null,null,null,{"$f":"SUM(C19:F19)","v":0},{"$f":"IF(G19>0,G19/$G$18,\"-\")","v":"-"}]
["Unprocessed waste transferred out",null,null,null,null,null,{"$f":"SUM(C20:F20)","v":0},{"$f":"IF(G20>0,G20/$G$18,\"-\")","v":"-"}]
["Total waste combusted",null,64598.84,47556.31,61718.64,66125.94,{"$f":"SUM(C21:F21)","v":239999.72999999998},{"$f":"IF(G21>0,G21/$G$18,\"-\")","v":0.97689530112831524}]
[]
["Energy Usage / Export","Unit","Q1","Q2","Q3","Q4","Year Total","KWh/te"]
["Power Generated","MWh",49103,29420,45631,45555,{"$f":"SUM(C24:F24)","v":169709},{"$f":"IF(G24>0,G24*1000/$G$21,\"-\")","v":707.12162884516579}]
["Power Exported",null,44784,26421,40773,40935,{"$f":"SUM(C25:F25)","v":152913},{"$f":"IF(G25>0,G25*1000/$G$21,\"-\")","v":637.13821678049396}]
["Power Used on site",null,{"$f":"(C24+C27)-C25","v":4319},{"$f":"(D24+D27)-D25","v":3758},4869,4642,{"$f":"SUM(C26:F26)","v":17588},{"$f":"IF(G26>0,G26*1000/$G$21,\"-\")","v":73.283415777176089}]
["Power Imported",null,0,759,11,22,792,{"$f":"IF(G27>0,G27*1000/$G$21,\"-\")","v":3.3000037125041768}]
["Parasitic Load","%",{"$f":"IF(C24>0,1-C25/(C24+C27),\"-\")","v":8.7957965908396663E-2},{"$f":"IF(D24>0,1-D25/(D24+D27),\"-\")","v":0.12452367540342624},{"$f":"IF(E24>0,1-E25/(E24+E27),\"-\")","v":0.10667805968187194},{"$f":"IF(F24>0,1-F25/(F24+F27),\"-\")","v":0.10184961713144791},{"$f":"IF(G24>0,1-G25/(G24+G27),\"-\")","v":0.10315482020633315}]
["Thermal Energy Produced **","MWh",null,null,null,null,{"$f":"SUM(C29:F29)","v":0},{"$f":"IF(G29>0,G29*1000/$G$21,\"-\")","v":"-"}]
["Thermal Energy Exported **",null,null,null,null,null,0,{"$f":"IF(G30>0,G30*1000/$G$21,\"-\")","v":"-"}]
["R1 value (if applicable)",null,0.76]
[]
["Waste Disposal & Recovery","Unit","Q1","Q2","Q3","Q4","Year Total","% inputs"]
["APC Residues - produced","tonnes",1475,1158,1178,1281,{"$f":"SUM(C34:F34)","v":5092},{"$f":"IF(G34>0,G34/$G$21,\"-\")","v":2.1216690535443519E-2}]
["IBA - produced",null,10626.72,10296.09,10345.57,11743.1,43011.479999999996,{"$f":"IF(G35>0,G35/$G$21,\"-\")","v":0.17921470161653932}]
["Metals recycling",null,2275,2028,2616,1857,{"$f":"SUM(C36:F36)","v":8776},3.656670780421295E-2]
["Other",null,0,0,0,0,{"$f":"SUM(C37:F37)","v":0},"-"]
["Other",null,0,0,0,0,0,"-"]
["Other",null,0,0,0,0,0,"-"]
[]
["Raw Material Usage","Unit","Q1","Q2","Q3","Q4","Year Total","kg or Ltr /te"]
["Mains Water","ltrs",5446000,4526000,5031000,4828000,{"$f":"SUM(C42:F42)","v":19831000},{"$f":"IF(G42>0,G42/$G$21,\"-\")","v":82.629259624583753}]
["Other Water","ltrs",null,null,null,null,0,{"$f":"IF(G43>0,G43/$G$21,\"-\")","v":"-"}]
["Ammonia","kgs",45482,27870,45187,43330,161869,0.67445492542845786]
["Urea","kgs",null,null,null,null,{"$f":"SUM(C45:F45)","v":0},"-"]
["Activated Carbon","kgs",43420,26845,47172,41679,159116,0.66298407919042246]
["Lime / hydrated lime","kgs",473729,337450,399287,352921,1563387,6.5141198283848079]
["Fuel oil","ltrs",66705,60838,43374,57176,228093,0.95038856918714043]
["Gas","cf",0,0,0,0,0]
["Other",null,0,0,0,0,0]
[]
["Summary ","Line/Unit",2,"Q2","Q3","Q4","Year Total",null,null,"Hrs in year "]
["Availability of waste combustion by line, hrs",1,2094.3000000000002,1780,2208,2139.5,{"$f":"SUM(C53:F53)","v":8221.7999999999993},{"$f":"G53/J53","v":0.93856164383561635},null,8760]
[null,2,2159,1679.5,2179.1999999999998,2209,8226.7000000000007,{"$f":"G54/J53","v":0.93912100456621017}]
[null,3,null,null,null,null,0,"x %"]
[null,4,null,null,null,null,0,"x %"]
[null,5,null,null,null,null,{"$f":"SUM(C57:F57)","v":0},"x %"]
["Overall Availability, mean avg. of all lines, hrs",null,null,null,null,null,{"$f":"AVERAGE(G53:G54)","v":8224.25},{"$f":"G58/J53","v":0.93884132420091326}]
["Hours of turbine operations, hrs",1,2159,1469,2203,2196,8027,{"$f":"G59/J53","v":0.91632420091324196}]
["Hours of turbine operations, hrs",2,null,null,null,null,0,"x %"]
["Hours of heat / steam export",null,null,null,null,null,0,{"$f":"IF(B61>0,G60/J53,\"n/a\")","v":"n/a"}]
["Net Calorific Value of waste","MJ/kg",9.4,9.1999999999999993,9.4,8.6999999999999993,{"$f":"AVERAGE(C62:F62)","v":9.1750000000000007},"-"]
["Abnormal Events","qty.",2,0,0,2,4,{"$f":"IF(G63>0,\"yes\",\"no\")","v":"yes"}]
["Abnormal operation","hours",1.5,null,null,1,2.5,{"$f":"+(G64)/J53","v":2.8538812785388126E-4}]
["Permit Breaches","qty.",2,0,0,1,3,{"$f":"IF(G65>0,\"yes\",\"no\")","v":"yes"}]

{"sheet":"Operational Summary","index":4,"n_rows":54,"n_cols":11,"rows_kept":54,"cut":false,"hidden":false,"merged":[[4,0,26,8],[30,0,51,8],[4,10,13,13],[30,10,39,13]]}
[{"$f":"+'Cover Page'!$B$30","v":"Annual Performance Report 2022"},null,null,null,{"$f":"+'Cover Page'!$B$34","v":"Cornwall Energy Recovery Centre"}]
[]
["Summary of Plant Operations and Maintenance during the reporting year",null,null,null,null,null,null,null,null,null,"Notes:"]
[]
["The main annual outage of 2022 took place in April/May. The outage works consisted of the normal grit blasting of all internal furnace tubes, thickness testing and NDT. A large program of equipment overhauls was undertaken including grate and refractory inspections and repairs on both lines.\n\nTo improve plant stability, combustion and decrease the amount of fouling seen within the boiler horizontal pass some modifications were made to the secondary air injection nozzles on Line 2 including the installation of a combustion control system.\n\nOperationally the plant had a good level of reliability across the year.",null,null,null,null,null,null,null,null,null,"Include summary of key operational and/or maintenance activity undertaken in the year, such as any major component upgrades and/or replacements "]
[]
[]
[]
[]
[]
[]
[]
[]
[]
[]
[]
[]
[]
[]
[]
[]
[]
[]
[]
[]
[]
[]
[]
["Summary of Residue Handling for the reporting year"]
[]
["All IBA produced by the EfW plant is transferred to the IBA recycling plant by conveyor, the IBA recycling plant is operated by Blue Phoenix. The IBA is non-hazardous, as confirmed by weekly analysis of the IBA,  and undergoes a mechanical separation process to remove all ferrous and non-ferrous metals leaving an IBA aggregate product. The metals are transferred to other operators for recycling and the IBA is applied to land in construction activities as a replacement for virgin (quarried) aggregate. This is in accordance with Environment Agency Regulatory Position Statement (RPS) 206 \"Using unbound IBAA in construction activities\".\n\nAir Pollution Control (APC) residues is the fly ash from the boiler mixed with dry sorbents such as carbon and lime in the flu gas treatment plant. The APC residue is hazardous and is therefore collected and disposed of to landfill\n\nSome additional residues may be produced during cleaning of the boiler during cleaning activities in planned maintenance outages. This boiler ash, often mixed with grit blast residues from the cleaning process, is disposed of to landfill.",null,null,null,null,null,null,null,null,null,"Include in here a summary of residue handling regimes and destinations "]
[]
[]
[]
[]
[]
[]
[]
[]
[]
[]
[]
[]
[]
[]
[]
[]
[]
[]
[]
[]
[]
[]
[null,null,"2023-02-24"]

{"sheet":"Perf. Form 1","index":5,"n_rows":54,"n_cols":10,"rows_kept":54,"cut":false,"hidden":false,"merged":[[9,0,9,9],[10,0,10,1],[10,2,10,3],[10,4,10,5],[10,6,10,7],[10,8,10,9],[2,0,2,4],[3,1,3,4],[5,3,5,4],[5,6,5,7],[8,0,8,1],[8,2,8,3],[8,4,8,5],[8,6,8,7],[8,8,8,9],[11,0,11,1],[11,2,11,3],[11,4,11,5],[11,6,11,7],[11,8,11,9],[12,0,12,1],[12,2,12,3],[12,4,12,5],[12,6,12,7],[12,8,12,9],[15,0,15,1],[15,2,15,3],[15,4,15,5],[15,6,15,7],[15,8,15,9],[16,0,16,9],[13,0,13,1],[13,2,13,3],[13,4,13,5],[13,6,13,7],[13,8,13,9],[14,0,14,3],[14,4,14,5],[14,6,14,7],[14,8,14,9],[17,0,17,1],[17,2,17,3],[17,4,17,5],[17,6,17,7],[17,8,17,9],[18,0,18,1],[18,2,18,3],[18,4,18,5],[18,6,18,7],[18,8,18,9],[19,0,19,1],[19,2,19,3],[19,4,19,5],[19,6,19,7],[19,8,19,9],[20,0,20,1],[20,2,20,3],[20,4,20,5],[20,6,20,7],[20,8,20,9],[21,0,21,1],[21,2,21,3],[21,4,21,5],[21,6,21,7],[21,8,21,9],[22,0,22,3],[22,4,22,5],[22,6,22,7],[22,8,22,9],[31,0,31,3],[31,7,31,8],[32,0,32,3],[32,4,32,5],[32,7,32,8],[33,0,33,3],[33,4,33,5],[33,7,33,8],[23,0,23,3],[23,4,23,5],[23,6,23,7],[23,8,23,9],[25,0,25,9],[26,0,28,9],[36,0,36,3],[36,4,36,5],[36,7,36,8],[37,0,37,3],[37,4,37,5],[37,7,37,8],[34,0,34,3],[34,4,34,5],[34,7,34,8],[35,0,35,3],[35,4,35,5],[35,7,35,8],[47,0,47,1],[49,0,49,9],[50,0,51,9],[38,0,38,9],[39,0,40,9],[43,0,43,1],[43,2,43,9],[45,0,45,1],[46,0,46,1]]}
[{"$f":"+'Cover Page'!C40","v":2022}," Annual Reporting Performance Form 1"]
[]
[{"$f":"+'Cover Page'!B32","v":"Permit EPR/GP3433GH"},null,null,null,null,"Operator: ",{"$f":"+'Cover Page'!B38:B38","v":"SUEZ Recycling and Recovery UK Ltd"}]
["Facility:",{"$f":"+'Cover Page'!B34:I34","v":"Cornwall Energy Recovery Centre"},null,null,null,"Form:","Performance 1"]
[]
["Reporting  Period from: ",null,null,"2022-01-01",null,"to:","2022-12-31"]
[]
[{"$f":"+A1","v":2022},"Annual Reporting of Waste Disposal and Recovery"]
["Waste Description",null,"Disposal Route(s)",null,"Disposal Tonnes",null,"Recovery Tonnes",null,"% / tonne of waste incinerated"]
["1) Hazardous Wastes"]
["APC Residues",null,"D05",null,5092.8599999999997,null,null,null,{"$f":"IF((E11+G11)>0,(E11+G11)/'Operational Data'!$G$21, \"-\")","v":2.1220273872808108E-2}]
["IBA",null,null,null,null,null,null,null,{"$f":"IF((E12+G12)>0,(E12+G12)/'Operational Data'!$G$21, \"-\")","v":"-"}]
[null,null,null,null,null,null,null,null,{"$f":"IF((E13+G13)>0,(E13+G13)/'Operational Data'!$G$21, \"-\")","v":"-"}]
[null,null,null,null,null,null,null,null,{"$f":"IF((E14+G14)>0,(E14+G14)/'Operational Data'!$G$21, \"-\")","v":"-"}]
["Total Hazardous Waste",null,null,null,{"$f":"SUM(E11:F14)","v":5092.8599999999997},null,{"$f":"SUM(G11:H14)","v":0},null,{"$f":"IF((E15+G15)>0,(E15+G15)/'Operational Data'!$G$21, \"-\")","v":2.1220273872808108E-2}]
[]
["2) Non-Hazardous Wastes"]
["IBA",null,"R10",null,null,null,46074.2,null,{"$f":"IF((E18+G18)>0,(E18+G18)/'Operational Data'!$G$21, \"-\")","v":0.19197604930638881}]
["Ferrous Metal",null,"R5",null,null,null,5522,null,{"$f":"IF((E19+G19)>0,(E19+G19)/'Operational Data'!$G$21, \"-\")","v":2.3008359217737456E-2}]
["Process Water",null,null,null,null,null,null,null,{"$f":"IF((E20+G20)>0,(E20+G20)/'Operational Data'!$G$21, \"-\")","v":"-"}]
["Non-ferrous metal",null,"R5",null,null,null,3276,null,{"$f":"IF((E21+G21)>0,(E21+G21)/'Operational Data'!$G$21, \"-\")","v":1.3650015356267278E-2}]
[null,null,null,null,null,null,null,null,{"$f":"IF((E22+G22)>0,(E22+G22)/'Operational Data'!$G$21, \"-\")","v":"-"}]
["Total Non-Hazardous Waste",null,null,null,{"$f":"SUM(E18:F22)","v":0},null,{"$f":"SUM(G18:H22)","v":54872.2},null,{"$f":"IF((E23+G23)>0,(E23+G23)/'Operational Data'!$G$21, \"-\")","v":0.22863442388039354}]
["TOTAL WASTE",null,null,null,{"$f":"+E23+E15","v":5092.8599999999997},null,{"$f":"+G23+G15","v":54872.2},null,{"$f":"IF((E24+G24)>0,(E24+G24)/'Operational Data'!$G$21, \"-\")","v":0.24985469775320165}]
[]
["Operator’s comments :"]
[]
[]
[]
[]
[{"$f":"+A1","v":2022},"Annual Reporting of Water and Other Raw Material Usage"]
["Raw Material",null,null,null,"Usage",null,"Unit","Specific Usage",null,"Unit"]
["Mains Water",null,null,null,{"$f":"(+'Operational Data'!G42)/1000","v":19831},null,"m3",{"$f":"IF(E33>0,E33/'Operational Data'!$G$21,\"-\")","v":8.2629259624583756E-2},null,"m3/te"]
["Total Water",null,null,null,{"$f":"(+'Operational Data'!G43+'Operational Data'!G42)/1000","v":19831},null,"m3",{"$f":"IF(E34>0,E34/'Operational Data'!$G$21,\"-\")","v":8.2629259624583756E-2},null,"m3/te"]
["Urea / Ammonia",null,null,null,{"$f":"+'Operational Data'!G44","v":161869},null,"kg",{"$f":"IF(E35>0,E35/'Operational Data'!$G$21,\"-\")","v":0.67445492542845786},null,"kg/te"]
["Activated Carbon",null,null,null,{"$f":"+'Operational Data'!G46","v":159116},null,"kg",{"$f":"IF(E36>0,E36/'Operational Data'!$G$21,\"-\")","v":0.66298407919042246},null,"kg/te"]
["Lime / hydrated lime / Sodium Bicarb.",null,null,null,{"$f":"+'Operational Data'!G47","v":1563387},null,"kg",{"$f":"IF(E37>0,E37/'Operational Data'!$G$21,\"-\")","v":6.5141198283848079},null,"kg/te"]
[]
["Operator’s comments :"]
[]
[]
[]
[{"$f":"+A31","v":2022},"Annual Reporting of other performance indicators "]
["Parameter",null,"Results by Line"]
[null,null,"A1","A2","A3","A4","A5",null,"Turbine 1","Turbine 2"]
["Operating hours for the year, hours",null,8172,8136,null,null,null,null,8027]
["Number of periods of abnormal operation, qty.",null,1,4]
["Cumulative hours of abnormal operation for this year, hours",null,0.5,2]
[]
["Operator’s comments :"]
[]
[]
[]
["Signed: ","Richard Watkins","2023-02-24",null,null,null,"Date:","2023-01-17"]

{"sheet":"Energy Form 1","index":6,"n_rows":54,"n_cols":8,"rows_kept":54,"cut":false,"hidden":false,"merged":[[2,5,2,8],[9,0,9,2],[9,3,9,4],[9,6,9,8],[10,0,10,2],[10,3,10,4],[10,6,10,8],[4,1,4,4],[6,3,6,4],[6,6,6,7],[8,0,8,2],[8,3,8,4],[8,6,8,8],[11,0,11,2],[11,3,11,4],[11,6,11,8],[12,0,12,2],[12,3,12,4],[12,6,12,8],[13,0,13,2],[13,3,13,4],[13,6,13,8],[14,0,14,2],[14,3,14,4],[14,6,14,8],[15,0,15,2],[15,3,15,4],[15,6,15,8],[17,0,17,8],[18,0,24,8]]}
[{"$f":"+'Cover Page'!C40","v":2022}," Annual Reporting of Energy Usage/Export"]
[]
[{"$f":"+'Cover Page'!B32","v":"Permit EPR/GP3433GH"},null,null,null,"Operator: ",{"$f":"+'Cover Page'!B38:B38","v":"SUEZ Recycling and Recovery UK Ltd"}]
[]
["Facility:",{"$f":"+'Cover Page'!B34:I34","v":"Cornwall Energy Recovery Centre"},null,null,null,"Form:","Energy 1"]
[]
["Reporting  Period from: ",null,null,{"$f":"+'Perf. Form 1'!D6:E6","v":"2022-01-01"},null,"to:",{"$f":"+'Perf. Form 1'!G6:H6","v":"2022-12-31"}]
[]
["Energy Source",null,null,"Energy Usage",null,"Unit","Specific Useage (KWh/tonne incinerated"]
["Electricity Produced",null,null,{"$f":"+'Operational Data'!G24","v":169709},null,"MWh",{"$f":"+'Operational Data'!H24","v":707.12162884516579}]
["Electricity Imported   ",null,null,{"$f":"+'Operational Data'!G27","v":792},null,"MWh",{"$f":"+'Operational Data'!H27","v":3.3000037125041768}]
["Electricity Exported",null,null,{"$f":"+'Operational Data'!G25","v":152913},null,"MWh",{"$f":"+'Operational Data'!H25","v":637.13821678049396}]
["Gas Oil",null,null,{"$f":"('Operational Data'!G48/1000)*0.845","v":192.73858499999997},null,"tonnes",{"$f":"+(D13*42800*1000*(1/3600))/'Operational Data'!G21","v":9.5477091647839227}]
["Steam/hot water exported",null,null,{"$f":"+'Operational Data'!G30","v":0},null,"GWh",{"$f":"+'Operational Data'!H30","v":"-"}]
[]
[]
[]
["Operator’s comments :"]
["Density value of 845 kg.m-3 used to convert gas oil litres to tonnes.\nNet Calorific Value (NCV) of 42,800 kJ.kg-1 used for gas oil"]
[]
[]
[]
[]
[]
[]
[]
[]
[]
["Signed: ","Richard Watkins",null,null,null,null,"Date:","2023-01-17"]
[]
[]
[]
[]
[]
[]
[]
[]
[]
[]
[]
[]
[]
[]
[]
[]
[]
[]
[]
[]
[]
[]
[null,null,2]
[]
[null,null,"2023-02-24"]

{"sheet":"Permit Compliance","index":7,"n_rows":54,"n_cols":12,"rows_kept":54,"cut":false,"hidden":false,"merged":[[8,11,17,14],[35,4,35,8],[9,0,9,1],[9,2,9,4],[9,5,9,8],[10,0,10,1],[10,2,10,4],[10,5,10,8],[11,0,11,1],[11,2,11,4],[11,5,11,8],[12,0,12,1],[12,2,12,4],[12,5,12,8],[13,0,13,1],[13,2,13,4],[7,0,7,1],[7,2,7,8],[8,0,8,1],[8,2,8,4],[8,5,8,8],[13,5,13,8],[14,0,14,1],[14,2,14,4],[14,5,14,8],[15,0,15,1],[16,2,16,4],[16,5,16,8],[15,2,15,4],[15,5,15,8],[16,0,16,1],[19,1,19,3],[19,4,19,6],[19,7,19,9],[20,1,20,3],[20,4,20,6],[20,7,20,9],[24,7,24,9],[21,1,21,3],[21,4,21,6],[21,7,21,9],[22,1,22,3],[22,4,22,6],[22,7,22,9],[25,4,25,6],[25,7,25,9],[34,1,34,3],[34,4,34,6],[34,7,34,9],[31,1,31,3],[31,4,31,6],[31,7,31,9],[32,1,32,3],[32,4,32,6],[32,7,32,9],[28,0,28,10],[26,1,26,3],[26,4,26,6],[26,7,26,9],[18,0,18,10],[33,1,33,3],[33,4,33,6],[33,7,33,9],[29,1,29,3],[29,4,29,6],[29,7,29,9],[30,1,30,3],[30,4,30,6],[30,7,30,9],[23,1,23,3],[23,4,23,6],[23,7,23,9],[24,1,24,3],[24,4,24,6],[25,1,25,3]]}
[{"$f":"+'Cover Page'!$B$30","v":"Annual Performance Report 2022"},null,null,null,{"$f":"+'Cover Page'!$B$34","v":"Cornwall Energy Recovery Centre"}]
[]
["Summary of Permit Compliance"]
[]
["Compliance with permit limits for continuously monitored pollutants"]
[]
["The plant met its emission limits as shown in the table below:"]
["Substance",null,"Percentage time compliant during operation",null,null,null,null,null,null,null,null,"Notes:"]
[null,null,"Half-hourly limit",null,null,"Daily limit",null,null,null,null,null,"Report to 2 decimal places, i.e. xx.xx%\n\nPlease provide a brief summary of each notification or non-compliance in the table (rather than just referring to notifications that were sent to the Regulator).  \n\n"]
["Particulates",null,1,null,null,1]
["Oxides of nitrogen",null,1,null,null,1]
["Sulphur dioxide",null,1,null,null,1]
["Carbon monoxide",null,"100.00 % 95% of 10-min averages",null,null,1]
["Total organic carbon",null,1,null,null,1]
["Hydrogen chloride",null,1,null,null,0.99850000000000005]
["Hydrogen fluoride",null,1,null,null,1]
[]
[]
["Summary of any notifications or non-compliances under the permit"]
["Date","Summary of notification or non-compliance [including Line/Reference]",null,null,"Reason ",null,null,"Measures taken to prevent reoccurrence"]
["2022-01-18","Carbon monoxide 1/2 hourly ELV breach Line 1",null,null,"Unstable combustion",null,null,"Permit variation"]
["2022-02-16","IBA TOC concentration above 3% limit",null,null,"Laboratory issues?",null,null,"None"]
["2022-12-01","Hydrogen chloride daily average breach Line 2",null,null,"Comms issue between CDAS and DCS",null,null,"Memory cache cleared and alarm mgt."]
["2022-01-18","CEMs data loss Line 2",null,null,"CDAS comms issue",null,null,"Service contractor investigation"]
["2022-02-04","CEMs data loss Line 1 & 2",null,null,"CDAS comms issue",null,null,"Service contractor investigation"]
["2022-11-06","CEMs data loss - failed background check Line 2",null,null,"SO2 analyser fault",null,null,"Service contractor investigation"]
["2022-12-15","CEMS data loss Line 2",null,null,"Nitrogen solenoid failure",null,null,"Solenoid replaced"]
[]
["Summary of any complaints received and actions to taken to resolve them."]
["Date","Summary of complaint [including Line/Reference]",null,null,"Reason *",null,null,"Measures taken to prevent reoccurrence"]
[]
[]
[]
[]
[]
[null,null,null,null,"* including whether substantiated by the operator or the EA"]
[]
[]
[]
[]
[]
[]
[]
[]
[]
[]
[]
[]
[]
[]
[]
[null,null,2]
[]
[null,null,"2023-02-24"]

{"sheet":"Improvements","index":8,"n_rows":54,"n_cols":5,"rows_kept":54,"cut":false,"hidden":false,"merged":[[37,0,37,8],[38,0,47,8],[4,0,4,8],[5,0,13,8],[15,0,15,8],[16,0,24,8],[26,0,26,8],[27,0,35,8]]}
[{"$f":"+'Cover Page'!$B$30","v":"Annual Performance Report 2022"},null,null,null,{"$f":"+'Cover Page'!$B$34","v":"Cornwall Energy Recovery Centre"}]
[]
["Summary of Plant Improvements"]
[]
["Summary of any efficiency improvements that have been completed within the year."]
["To improve plant stability, combustion and decrease the amount of fouling seen within the boiler horizontal pass some modifications were made to the secondary air injection nozzles on Line 2 including the installation of a combustion control system."]
[]
[]
[]
[]
[]
[]
[]
[]
[]
["Summary of any permit improvement conditions that have been completed within the year and the resulting environmental benefits."]
["Not applicable"]
[]
[]
[]
[]
[]
[]
[]
[]
[]
["Summary of any changes to the plant or operating techniques which required a variation to the permit and a summary of the resulting environmental impact."]
["Not applicable"]
[]
[]
[]
[]
[]
[]
[]
[]
[]
["Summary of any other improvements made to the plant or planned to be made and a summary of the resulting environmental benefits."]
[]
[]
[]
[]
[]
[]
[]
[]
[]
[]
[]
[]
[]
[null,null,2]
[]
[null,null,"2023-02-24"]

{"sheet":"Public Liasion","index":9,"n_rows":54,"n_cols":5,"rows_kept":54,"cut":false,"hidden":false,"merged":[[16,0,16,1],[16,2,16,8],[5,0,5,1],[5,2,5,8],[6,0,7,1],[6,2,7,8],[8,0,9,1],[8,2,9,8],[10,0,11,1],[10,2,11,8],[12,0,13,1],[12,2,13,8],[15,0,15,8],[17,0,18,1],[17,2,18,8],[19,0,20,1],[19,2,20,8],[21,0,22,1],[21,2,22,8],[23,0,24,1],[23,2,24,8],[25,0,26,1],[25,2,26,8],[28,0,28,8]]}
[{"$f":"+'Cover Page'!$B$30","v":"Annual Performance Report 2022"},null,null,null,{"$f":"+'Cover Page'!$B$34","v":"Cornwall Energy Recovery Centre"}]
[]
["Details of Public & Stakeholder Liasion"]
[]
["Summary of events held during the reporting year."]
["Date",null,"Description"]
["2022-04-09",null,"Spring Beach Clean and Easter Egg Hunt at Black Rock Beach, nr Bude.  Staff were joined by friends and family in this great social value event."]
[]
["01-07/05/22",null,"Compost Awareness Week.  Compost was given away free to the public  from two HWRC sites.  Staff were available to discuss composting and also to promote the visitor centres and tours of CERC and MRF."]
[]
["09-11/06/22",null,"Royal Cornwall Show.  SUEZ staff were available on our stand at the show to discuss the waste hierarchy and the work we carry out at our sites.  Tours of both CERC and MRF were successfully promoted.  "]
[]
["2022-10-15",null,"Autumn Beach Clean event at Holywell Bay, Newquay.  Staff were joined by friends and family in this great social value event."]
[]
[]
["List of events planned for next year"]
["Date",null,"Description"]
["2023-03-11",null,"Spring Beach Clean and Easter Egg Hunt at Par Sands Beach.  Staff will joined by friends and family in this great social value event.  Cornwall Council staff will also be invited."]
[]
["13-19/03/23",null,"Compost Awareness Week.  Details to be confirmed."]
[]
["08-10/06/23",null,"Royal Cornwall Show.  SUEZ staff will be available on our stand at the show to discuss the waste hierarchy and the work we carry out at our sites.  The visitors centres and tours will also be promoted.   "]
[]
["June to September dates to be confirmed.",null,"Sir Arthur Smith School, Penryn College, Callywith College Outreach visits and careers fairs (to be confirmed)"]
[]
["October/November date to be confirmed.",null,"Autumn Beach Clean event (venue to be decided) , Newquay. Staff will be joined by friends and family in this great social value event.  Cornwall Council staff will also be invited."]
[]
[]
["If you wish to be involved in the public liasion programme, please contact lisa.thompson@suez.com"]
[]
[]
[]
[]
[]
[]
[]
[]
[]
[]
[]
[]
[]
[]
[]
[]
[]
[]
[]
[]
[]
[]
[null,null,2]
[]
[null,null,"2023-02-24"]

{"sheet":"CO2 N2O","index":10,"n_rows":54,"n_cols":5,"rows_kept":54,"cut":false,"hidden":false,"merged":[[19,4,19,14],[17,4,17,14],[12,4,12,14],[8,4,8,14],[19,1,19,2],[22,0,23,2],[4,0,4,2],[8,1,8,2],[10,0,10,2],[12,1,12,2],[15,0,15,2],[17,1,17,2]]}
[{"$f":"+'Cover Page'!$B$30","v":"Annual Performance Report 2022"},null,{"$f":"+'Cover Page'!$B$34","v":"Cornwall Energy Recovery Centre"}]
[]
["Carbon dioxide emissions and biogenic content of waste inputs",null,null,null,"Notes:"]
[]
["Carbon dioxide emissions (all types of plant)"]
["Annual mass of carbon dioxide released",225013,"tonnes"]
["Annual mass of carbon dioxide released per tonne of waste burned",{"$f":"B6/'Operational Data'!G21","v":0.93755522141629088},"tonnes"]
["Annual mass of carbon dioxide released per MWh of energy exported",{"$f":"B6/'Operational Data'!G25","v":1.4715099435626795},"tonnes"]
["Description of how annual carbon dioxide mass emission has been calculated","CO2 (%) measured by the CEMS was converted to a mass and then multiplied by flow rate and operational hours to provide the annual mass emission. Data from 12/01/2022 has a calibration function apllied from the QAL2 calibration that took place on the 18/11/2021.",null,null,"Note 1: Where available, data from CO2 CEMS should be used. Otherwise, where no CEMS data is available, a suitable emissions factor should be used based on the tonnage of waste burned e.g.0.992 tCO2/t waste as per Tolvik report 2021, or other justified emissions factor  - refer to embedded Environment Agency guidance note above or updated version for suitable descriptive text."]
[]
["Nitrous oxide emissions (only plants which use ammonia or urea to abate NOx emissions)"]
["Annual mass emissions of nitrous oxide",1.1000000000000001,"tonnes"]
["Description of how annual nitrous oxide mass emission has been calculated","CEMS mass emission report.\nData from 12/01/2022 has a calibration function apllied from the QAL2 calibration that took place on the 18/11/2021.",null,null,"Note 2: Where available, data from N2O CEMS should be used, or if no CEMS data is available, from periodic monitoring. Otherwise, a suitable emissions factor should be used based on the tonnage of waste burned e.g. 0.0981 kgN20/t waste as per 2021 Pollution Inventory data for plants with urea-based SNCR - refer to embedded Environment Agency guidance note above or updated version for suitable descriptive text."]
["Total annual carbon dioxide and nitrous oxide emissions as carbon dioxide equivalent (whereby 1 t nitrous oxide is equivalent to 298 t carbon dioxide)",{"$f":"(B12*298)+B6","v":225340.79999999999},"tonnes CO2e"]
[]
["Biogenic fraction of the waste and biogenic CO2 emissions (only plants burning residual municipal waste, refuse derived fuel or solid recovered fuel)"]
["Yearly average biogenic percentage of the waste by net calorific value (NCV)",0.53610000000000002]
["Description of how biogenic NCV percentage has been calculated or estimated","Periodic waste sampling (annual) is carried out in order to determine the biogenic fraction, and from this a factor is derived to determine the proportion of biogenic CO2 emitted from the plant.",null,null,"Note 3: Where available, data from waste sampling should be used; otherwise, an estimated figure with justification can be used, or a figure assumed on the basis of a national average e.g. 2017 WRAP data for residual waste of 51.8% biogenic energy content - refer to embedded Environment Agency guidance note above or updated version for suitable descriptive text, quoting standards where relevant. "]
["Percentage of total carbon dioxide emissions arising from biogenic waste",0.53610000000000002]
["Description of how percentage biogenic carbon dioxide emissions have been calculated","Periodic waste sampling (annual) is carried out in order to determine the biogenic fraction, and from this a factor is derived to determine the proportion of biogenic CO2 emitted from the plant.",null,null,"Note 4: Examples include direct measurement via C14 method or BIOMA software - refer to embedded Environment Agency guidance note above or updated version for suitable descriptive text, quoting standards where relevant. Otherwise, as an approximation (and in lieu of any more accurate metrics which may be developed in future), the measured or estimated biogenic fraction by net calorific value can be assumed to be the same as the biogenic CO2 fraction of the total CO2 emissions from the plant. "]
[]
["Comments:"]
[]
[]
[]
[]
[]
[]
[]
[]
[]
[]
[]
[]
[]
[]
[]
[]
[]
[]
[]
[]
[]
[]
[]
[]
[]
[]
[]
[]
[]
[null,null,2]
[]
[null,null,"2023-02-24"]

{"sheet":"Residue Quality ","index":11,"n_rows":54,"n_cols":6,"rows_kept":54,"cut":false,"hidden":false,"merged":[[16,0,17,1],[16,2,17,6],[18,0,19,1],[18,2,19,6],[12,0,12,6],[13,0,13,1],[13,2,13,6],[5,0,6,6],[7,0,8,6],[9,0,10,6],[14,0,15,1],[14,2,15,6],[20,0,21,1],[20,2,21,6],[22,0,23,1],[22,2,23,6],[31,3,31,4],[27,2,28,2],[28,3,28,4],[28,5,28,6],[27,3,27,6],[26,0,26,6],[35,0,40,6],[32,3,32,4],[34,0,34,6],[27,0,28,1],[29,0,29,1],[30,0,30,1],[31,0,31,1],[32,0,32,1],[29,3,29,4],[30,3,30,4],[29,5,29,6],[30,5,30,6],[31,5,31,6],[32,5,32,6]]}
[{"$f":"+'Cover Page'!$B$30","v":"Annual Performance Report 2022"},null,null,null,{"$f":"+'Cover Page'!$B$34","v":"Cornwall Energy Recovery Centre"}]
[]
["Residue Quality Monitoring Requirements"]
[]
["Summary of monitoring undertaken and compliance"]
["The samples for the quarterly IBA analysis were taken on the 16/02/2022, the 25/05/2022, the 17/08/2022 and the 09/11/2022."]
[]
[]
[]
[]
[]
[]
["Commentary on any specific events"]
["Date & Event",null,"Description"]
["2022-02-16",null,"The TOC analysis result for this IBA sample provided a non-compliant result of 3.44%. A subsequent retest of the retained sample provided a slightly lower TOC result of 3.08. Investigations on site were unable to identify any specific reason for the elevated TOC result and all subsequent results from 2022 were below the 3% limit."]
[]
[]
[]
[]
[]
[]
[]
[]
[]
[]
[]
["Residue Quality Monitoring Results"]
["Parameter (unit) ",null,"Limit","Normal Operation "]
[null,null,null,"Bottom ash  ",null,"APC Residues"]
["Loss on Ignition (average %)",null,"<5%","N/A"]
["Total Organic Carbon (average %)",null,"<3%",2.79]
["No. of Assessments Undertaken",null,"---",5,null,4]
["No. of Hazardous Results",null,"---",0]
[]
["Comments :"]
["Feb 2022 TOC = 3.44% (Retained sample retest = 3.08%)\nMay 2022 TOC = 2.63%\nAug 2022 TOC = 2.17%\nNov 2022 TOC = 2.63"]
[]
[]
[]
[]
[]
[]
[]
[]
[]
[]
[]
[]
[]
[]
[]
[null,null,2]
[]
[null,null,"2023-02-24"]

{"sheet":"Water","index":12,"n_rows":54,"n_cols":9,"rows_kept":54,"cut":false,"hidden":false,"merged":[[5,0,6,8],[7,0,8,8],[9,0,10,8],[12,0,12,8],[13,0,13,1],[13,2,13,8],[21,0,21,8],[22,0,22,2],[22,3,22,4],[14,0,15,1],[14,2,15,8],[16,0,17,1],[16,2,17,8],[18,0,19,1],[18,2,19,8],[23,0,23,2],[23,3,23,4],[24,0,24,2],[24,3,24,4],[25,0,25,2],[25,3,25,4],[29,0,29,2],[29,3,29,4],[26,0,26,2],[26,3,26,4],[27,0,27,2],[27,3,27,4],[28,0,28,2],[28,3,28,4]]}
[{"$f":"+'Cover Page'!$B$30","v":"Annual Performance Report 2022"},null,null,null,{"$f":"+'Cover Page'!$B$34","v":"Cornwall Energy Recovery Centre"}]
[]
["Emissions to Water"]
[]
["Summary of monitoring undertaken and compliance"]
["There are no discharges to water that require monitoring under the Environmental Permit. There are two discharges to water from package sewage treatment plants serving the EfW and IBA plant welfare facilities but these are regulated under separate Environmental Permits. there are no discharges to sewer from the site."]
[]
[]
[]
[]
[]
[]
["Commentary on any specific events"]
["Date & Event",null,"Description"]
[]
[]
[]
[]
[]
[]
[]
["Emissions to Water / Sewer"]
["Parameter",null,null,"Monitoring Frequency",null,"Limit","Target","Max.","Average"]
[]
[]
[]
[]
[]
[]
[]
[]
[]
[]
[]
[]
[]
[]
[]
[]
[]
[]
[]
[]
[]
[]
[]
[]
[]
[]
[]
[]
[null,null,2]
[]
[null,null,"2023-02-24"]

{"sheet":"Air (periodic)","index":13,"n_rows":54,"n_cols":13,"rows_kept":54,"cut":false,"hidden":false,"merged":[[5,12,8,15],[9,12,11,15],[8,0,8,9],[5,0,6,9],[11,0,11,1],[12,0,12,1],[11,3,11,4],[12,3,12,4],[9,0,10,1],[9,5,9,9],[9,3,10,4],[9,2,10,2],[16,0,16,1],[17,0,17,1],[18,0,18,1],[13,0,13,1],[14,0,14,1],[15,0,15,1],[39,0,40,9],[25,0,25,1],[26,0,26,1],[22,0,22,1],[23,0,23,1],[37,0,37,1],[27,0,27,1],[28,0,28,1],[29,0,29,1],[30,0,30,1],[31,0,31,1],[32,0,32,1],[37,3,37,4],[29,3,29,4],[30,3,30,4],[36,3,36,4],[38,0,38,9],[19,0,19,1],[20,0,20,1],[21,0,21,1],[34,3,34,4],[35,3,35,4],[33,0,33,1],[34,0,34,1],[35,0,35,1],[36,0,36,1],[24,0,24,1],[32,3,32,4],[13,3,13,4],[14,3,14,4],[15,3,15,4],[16,3,16,4],[17,3,17,4],[18,3,18,4],[27,3,27,4],[33,3,33,4],[19,3,19,4],[20,3,20,4],[21,3,21,4],[22,3,22,4],[23,3,23,4],[24,3,24,4],[31,3,31,4],[25,3,25,4],[26,3,26,4],[28,3,28,4]]}
[{"$f":"+'Cover Page'!$B$30","v":"Annual Performance Report 2022"},null,null,null,{"$f":"+'Cover Page'!$B$34","v":"Cornwall Energy Recovery Centre"}]
[]
["Emissions to Air (periodically monitored)"]
[]
["Summary of monitoring undertaken, standards used and compliance",null,null,null,null,null,null,null,null,null,null,null,"Notes:"]
["The compliance monitoring visits were carried out during May and November 2022. There were no non-compliances identified during either visit.",null,null,null,null,null,null,null,null,null,null,null,"Template may require adjustment for any bespoke monitoring requirements of permit. "]
[]
[]
["Results of emissions to air that are periodically monitored"]
["Substance",null,"Ref. Period","Emission Limit Value",null,"Average",null,null,null,null,null,null,"User to add additional tables as necessary, depending on whether quarterly or bi-annual reporting is required for the compliance year"]
[null,null,null,null,null,"A1","A2","A3","A4","A5"]
["Hydrogen fluoride",null,"1 hr","2 mg/m3",null,0.505,0.19899999999999998]
["Cd and Th and their compounds",null,"6-8hrs","0.05 mg/m3",null,1.225E-3,1.3749999999999999E-3]
["Hg and its compounds",null,"6-8hrs","0.05 mg/m3",null,1.175E-3,2.0499999999999997E-3]
["Sb, As, Pb, Cr, Co, Cu, Mn, Ni, V and their compounds",null,"6-8hrs","0.5 mg/m3",null,4.1500000000000002E-2,0.20900000000000002]
["Dioxins & Furans (I-TEQ)",null,"6-8hrs","0.1 ng/m3",null,2.7499999999999998E-3,2.0500000000000002E-3]
["PCBs (WHO-TEQ Humans / Mammals)",null,"6-8hrs","None set ng/m3",null,3.9000000000000005E-4,3.1E-4]
["PCBs (WHO-TEQ Fish)",null,"6-8hrs","None set ng/m3",null,2.1000000000000002E-5,1.6500000000000001E-5]
["PCBs (WHO-TEQ Birds)",null,"6-8hrs","None set ng/m3",null,1.75E-3,1.0400000000000001E-3]
["Dioxins & Furans (WHO-TEQ Humans / Mammals)",null,"6-8hrs","None set ng/m3",null,3.3E-3,2.0999999999999999E-3]
["Dioxins & Furans (WHO-TEQ Fish)",null,"6-8hrs","None set ng/m3",null,3.4499999999999999E-3,2.4000000000000002E-3]
["Dioxins & Furans (WHO-TEQ Birds)",null,"6-8hrs","None set ng/m3",null,4.7499999999999999E-3,4.8000000000000004E-3]
["Anthanthrene",null,"6-8hrs","None set µg/m3",null,1.65E-3,1.7000000000000001E-3]
["Benzo(a)anthracene",null,"6-8hrs","None set µg/m3",null,1.65E-3,2E-3]
["Benzo(a)pyrene",null,"6-8hrs","None set µg/m3",null,1.65E-3,1.7000000000000001E-3]
["Benzo(b)fluoranthene",null,"6-8hrs","None set µg/m3",null,1.65E-3,1.7000000000000001E-3]
["Benzo(b)naptho(2,1-d) thiophene",null,"6-8hrs","None set µg/m3",null,1.1849999999999999E-2,1.405E-2]
["Benzo(c)phenanthrene",null,"6-8hrs","None set µg/m3",null,1.65E-3,1.9E-3]
["Benzo(ghi)perylene",null,"6-8hrs","None set µg/m3",null,1.65E-3,1.8500000000000001E-3]
["Benzo(k)fluoranthene",null,"6-8hrs","None set µg/m3",null,1.65E-3,1.7000000000000001E-3]
["Cholanthrene",null,"6-8hrs","None set µg/m3",null,1.65E-3,1.7000000000000001E-3]
["Chrysene",null,"6-8hrs","None set µg/m3",null,2.0999999999999999E-3,2.15E-3]
["Cyclopenta(cd)pyrene",null,"6-8hrs","None set µg/m3",null,1.65E-3,1.7000000000000001E-3]
["Dibenzo(ai)pyrene",null,"6-8hrs","None set µg/m3",null,1.65E-3,1.7000000000000001E-3]
["Dibenzo(ah)anthracene",null,"6-8hrs","None set µg/m3",null,1.65E-3,1.7000000000000001E-3]
["Fluoranthene",null,"6-8hrs","None set µg/m3",null,4.335E-2,7.8350000000000003E-2]
["Indeno(123-cd) pyrene",null,"6-8hrs","None set µg/m3",null,1.65E-3,1.9000000000000002E-3]
["Naphthalene",null,"6-8hrs","None set µg/m3",null,0.36499999999999999,0.61]
["Comments :"]
["The average result is calculated from the reported values for the H1 and H2 compliance monitoring campaigns. Where results are reported at the laboratory limit of detection the < qualifier is removed for calculation of the average emission as a conservative measure. Where the average has been calculated in this way the reported value is highlighted bold."]
[]
[]
[]
[]
[]
[]
[]
[]
[]
[]
[]
[null,null,2]
[]
[null,null,"2023-02-24"]

{"sheet":"Air (CEMS)","index":14,"n_rows":54,"n_cols":16,"rows_kept":54,"cut":false,"hidden":false,"merged":[[27,0,27,12],[29,0,30,12],[11,0,12,0],[5,0,6,12],[8,0,8,12],[9,0,10,0],[9,2,10,2],[9,1,10,1],[9,3,9,4],[9,5,9,6],[9,7,9,8],[9,9,9,10],[9,11,9,12]]}
[{"$f":"+'Cover Page'!$B$30","v":"Annual Performance Report 2022"},null,null,null,null,null,null,null,{"$f":"+'Cover Page'!$B$34","v":"Cornwall Energy Recovery Centre"}]
[]
["Emissions to Air (continuously monitored)"]
[null,null,null,null,null,null,null,null,null,null,null,null,null,null,null,"Notes:"]
["Summary of monitoring undertaken, standards used and compliance",null,null,null,null,null,null,null,null,null,null,null,null,null,null,"Template may require adjustment for any bespoke monitoring requirements of permit"]
["The CEMS set up comprises a multigas analyser, FID analyser and then the oxygen probe for extractive sampling where flue gases are drawn continuously via a heated line to the analysers in the CEMS room for each incineration line. In situ sampling i.e. where the probes are installed directly into the flue gas flow in the stack is for the dust probes only. The set up for the duty analysers is mirrored by the standby analysers. The standby analysers can be switched between incineration Lines 1 and 2 as required. Continuous monitoring is provided by the CEMS as required by the permit. The CEMS are installed in accordance with EN14181 and relevant Environment Agency guidance.",null,null,null,null,null,null,null,null,null,null,null,null,null,null,"Report to 2 decimal places, i.e. xx.xx%"]
[]
[]
["Results of emissions to air that are continuously monitored (maximum and average values for each line)"]
["Substance","Reference Period","Emission Limit Value","A1",null,"A2",null,"A3",null,"A4",null,"A5"]
[null,null,null,"Max.","Avg.","Max.","Avg.","Max.","Avg.","Max.","Avg.","Max.","Avg."]
["Oxides of nitrogen","Daily mean","200 mg/m3 ",{"$f":"NOx!O19","v":146},{"$f":"NOx!N19","v":134.61666666666667},{"$f":"NOx!O34","v":148},{"$f":"NOx!N34","v":138.59166666666667}]
[null,"½ hourly mean","400 mg/m3 ",{"$f":"NOx!M19","v":178},{"$f":"NOx!L19","v":134.61666666666667},{"$f":"NOx!M34","v":183},{"$f":"NOx!L34","v":138.59166666666667}]
["Particulates","Daily mean","10 mg/m3",{"$f":"Particulates!O19","v":2.6},{"$f":"Particulates!N19","v":0.6083333333333335},{"$f":"Particulates!O34","v":3},{"$f":"Particulates!N34","v":0.31666666666666671}]
[null,"½ hourly mean","30 mg/m3 ",{"$f":"Particulates!M19","v":17.600000000000001},{"$f":"Particulates!L19","v":0.6083333333333335},{"$f":"Particulates!M34","v":20.399999999999999},{"$f":"Particulates!L34","v":0.31666666666666671}]
["Total Organic Carbon ","Daily mean","10 mg/m3 ",{"$f":"TOC!O19","v":0.9},{"$f":"TOC!N19","v":0.3166666666666666},{"$f":"TOC!O34","v":0.8},{"$f":"TOC!N34","v":0.23333333333333336}]
[null,"½ hourly mean","20 mg/m3 ",{"$f":"TOC!M19","v":6.1},{"$f":"TOC!L19","v":0.3166666666666666},{"$f":"TOC!M34","v":9.8000000000000007},{"$f":"TOC!L34","v":0.23333333333333336}]
["Hydrogen chloride ","Daily mean","10 mg/m3 ",{"$f":"HCl!O19","v":10},{"$f":"HCl!N19","v":8.4166666666666661},{"$f":"HCl!O34","v":10},{"$f":"HCl!N34","v":8.75}]
[null,"½ hourly mean","60 mg/m3 ",{"$f":"HCl!M19","v":15},{"$f":"HCl!L19","v":8.4166666666666661},{"$f":"HCl!M34","v":19},{"$f":"HCl!L34","v":8.75}]
["Sulphur dioxide","Daily mean","50 mg/m3 ",{"$f":"'SO2'!O19","v":21},{"$f":"'SO2'!N19","v":12.416666666666666},{"$f":"'SO2'!O34","v":22},{"$f":"'SO2'!N34","v":13.833333333333334}]
[null,"½ hourly mean","200 mg/m3 ",{"$f":"'SO2'!M19","v":189},{"$f":"'SO2'!L19","v":12.416666666666666},{"$f":"'SO2'!M34","v":52},{"$f":"'SO2'!L34","v":13.833333333333334}]
["Carbon monoxide ","Daily mean","50 mg/m3 ",{"$f":"'CO 95% 10 min'!Q19","v":5},{"$f":"'CO 95% 10 min'!P19","v":0.4},{"$f":"'CO 95% 10 min'!Q34","v":10},{"$f":"'CO 95% 10 min'!P34","v":3}]
[null,"½ hourly mean *","100 mg/m3 *",{"$f":"'CO 0.5hourly'!M19","v":59},{"$f":"'CO 0.5hourly'!L19","v":0},{"$f":"'CO 0.5hourly'!M34","v":84},{"$f":"'CO 0.5hourly'!L34","v":2.5}]
[null,"95%ile 10-min avg *","150 mg/m3 *",{"$f":"'CO 95% 10 min'!M19","v":6.2},{"$f":"'CO 95% 10 min'!N19","v":0.4},{"$f":"'CO 95% 10 min'!M34","v":12.4},{"$f":"'CO 95% 10 min'!N34","v":3}]
[" Ammonia","Daily mean","No limit set",{"$f":"'NH3'!O19","v":0.1},{"$f":"'NH3'!N19","v":4.1666666666666664E-2},{"$f":"'NH3'!O34","v":0.2},{"$f":"'NH3'!N34","v":0}]
["Hydrogen Fluoride","Daily mean","1 mg/m3 ",{"$f":"HF!O19","v":0.3},{"$f":"'NH3'!N19","v":4.1666666666666664E-2},{"$f":"HF!O34","v":0.8},{"$f":"HF!N34","v":3.3333333333333333E-2}]
[null,"½ hourly mean","4 mg/m3 ",{"$f":"HF!M19","v":1.6},{"$f":"HF!L19","v":8.3333333333333332E-3},{"$f":"HF!M34","v":1.4},{"$f":"HF!L34","v":3.3333333333333333E-2}]
["* = delete or amend as appropriate"]
["Comments :"]
[]
[]
[]
[]
[]
[]
[]
[]
[]
[]
[]
[]
[]
[]
[]
[]
[]
[]
[]
[]
[]
[]
[null,null,2]
[]
[null,null,"2023-02-24"]

{"sheet":"HCl","index":15,"n_rows":79,"n_cols":17,"rows_kept":79,"cut":false,"hidden":false,"merged":[[12,16,15,18],[51,9,63,9],[66,9,78,9],[4,9,4,14],[4,1,4,3],[4,4,4,6],[48,0,51,6],[47,0,47,6],[6,9,18,9],[21,9,33,9],[36,9,48,9],[3,16,7,18],[9,16,11,18]]}
[{"$f":"+'Cover Page'!$B$30","v":"Annual Performance Report 2022"},null,null,null,{"$f":"+'Cover Page'!$B$34","v":"Cornwall Energy Recovery Centre"}]
[]
["Monitoring of Hydrogen Chloride emissions",null,null,"Whole Installation",null,null,"See  Notes in Cell Q3",null,null,{"$f":"+A3","v":"Monitoring of Hydrogen Chloride emissions"},null,null,null,"Per Combustion Line",null,null,"Notes:"]
[null,null,null,null,null,null,null,null,null,null,null,null,null,null,null,null,"User to add logic to complete Whole installation, Table A5:G18. From the data in Per Combustion Line, Table J6:O79, subject to No. of lines installed"]
["mg/Nm3","1/2 Hourly Reference Periods",null,null,"Daily Reference Periods"]
[{"$f":"+'Cover Page'!C40","v":2022},"1/2 hourly HCl ELV","Monthly 1/2 hourly mean","Highest 1/2 hourly maximum","Daily HCl ELV","Monthly daily mean","Highest daily maximum",null,null,{"$f":"+A6","v":2022},"mg/Nm3","Monthly 1/2 hourly mean","Monthly 1/2 hourly maximum","Monthly daily mean","Monthly daily maximum"]
["Jan",60,{"$f":"AVERAGE(L7,L22)","v":9},{"$f":"AVERAGE(M7,M22)","v":15},10,{"$f":"AVERAGE(N7,N22)","v":9},{"$f":"AVERAGE(O7,O22)","v":10},null,null,"A1","Jan",9,14,9,10]
["Feb",60,{"$f":"AVERAGE(L8,L23)","v":8},14,10,{"$f":"AVERAGE(N8,N23)","v":8},10,null,null,null,"Feb",7,13,7,10]
["Mar",60,{"$f":"AVERAGE(L9,L24)","v":8.5},15.5,10,{"$f":"AVERAGE(N9,N24)","v":8.5},10,null,null,null,"Mar",7,13,7,10,null,"Whole Installation table A5:G18:"]
["Apr",60,{"$f":"AVERAGE(L10,L25)","v":10},17,10,{"$f":"AVERAGE(N10,N25)","v":10},10,null,null,null,"Apr",10,15,10,10,null,"Mean: for 1/2 hourly and daily periods calculate mean of values across all operational combustion lines for the month"]
["May",60,{"$f":"AVERAGE(L11,L26)","v":4.5},9.5,10,{"$f":"AVERAGE(N11,N26)","v":4.5},8,null,null,null,"May",6,11,6,10]
["Jun",60,{"$f":"AVERAGE(L12,L27)","v":8},12.5,10,{"$f":"AVERAGE(N12,N27)","v":8},10,null,null,null,"Jun",8,12,8,10]
["Jul",60,{"$f":"AVERAGE(L13,L28)","v":10},12.5,10,{"$f":"AVERAGE(N13,N28)","v":10},10,null,null,null,"Jul",10,12,10,10,null,"Maximum: for 1/2 hourly and daily periods use the highest value across all operational combustion lines for the month"]
["Aug",60,{"$f":"AVERAGE(L14,L29)","v":9.5},13,10,{"$f":"AVERAGE(N14,N29)","v":9.5},10,null,null,null,"Aug",10,13,10,10]
["Sep",60,{"$f":"AVERAGE(L15,L30)","v":10},13,10,{"$f":"AVERAGE(N15,N30)","v":10},10,null,null,null,"Sep",10,13,10,10]
["Oct",60,{"$f":"AVERAGE(L16,L31)","v":9.5},13.5,10,{"$f":"AVERAGE(N16,N31)","v":9.5},10,null,null,null,"Oct",9,14,9,10]
["Nov",60,{"$f":"AVERAGE(L17,L32)","v":9},12.5,10,{"$f":"AVERAGE(N17,N32)","v":9},10,null,null,null,"Nov",9,12,9,10]
["Dec",60,{"$f":"AVERAGE(L18,L33)","v":7},14,10,{"$f":"AVERAGE(N18,N33)","v":7},9.5,null,null,null,"Dec",6,11,6,9]
[null,null,null,null,null,null,null,null,null,null,"Annual",{"$f":"AVERAGE(L7:L18)","v":8.4166666666666661},{"$f":"MAX(M7:M18)","v":15},{"$f":"AVERAGE(N7:N18)","v":8.4166666666666661},{"$f":"MAX(O7:O18)","v":10}]
[]
[null,null,null,null,null,null,null,null,null,{"$f":"+A6","v":2022},"mg/Nm3","Monthly 1/2 hourly mean","Monthly 1/2 hourly maximum","Monthly daily mean","Monthly daily maximum"]
[null,null,null,null,null,null,null,null,null,"A2","Jan",9,16,9,10]
[null,null,null,null,null,null,null,null,null,null,"Feb",9,15,9,10]
[null,null,null,null,null,null,null,null,null,null,"Mar",10,18,10,10]
[null,null,null,null,null,null,null,null,null,null,"Apr",10,19,10,10]
[null,null,null,null,null,null,null,null,null,null,"May",3,8,3,6]
[null,null,null,null,null,null,null,null,null,null,"Jun",8,13,8,10]
[null,null,null,null,null,null,null,null,null,null,"Jul",10,13,10,10]
[null,null,null,null,null,null,null,null,null,null,"Aug",9,13,9,10]
[null,null,null,null,null,null,null,null,null,null,"Sep",10,13,10,10]
[null,null,null,null,null,null,null,null,null,null,"Oct",10,13,10,10]
[null,null,null,null,null,null,null,null,null,null,"Nov",9,13,9,10]
[null,null,null,null,null,null,null,null,null,null,"Dec",8,17,8,10]
[null,null,null,null,null,null,null,null,null,null,"Annual",{"$f":"AVERAGE(L22:L33)","v":8.75},{"$f":"MAX(M22:M33)","v":19},{"$f":"AVERAGE(N22:N33)","v":8.75},{"$f":"MAX(O22:O33)","v":10}]
[]
[null,null,null,null,null,null,null,null,null,{"$f":"+A6","v":2022},"mg/Nm3","Monthly 1/2 hourly mean","Monthly 1/2 hourly maximum","Monthly daily mean","Monthly daily maximum"]
[null,null,null,null,null,null,null,null,null,"A3","Jan"]
[null,null,null,null,null,null,null,null,null,null,"Feb"]
[null,null,null,null,null,null,null,null,null,null,"Mar"]
[null,null,null,null,null,null,null,null,null,null,"Apr"]
[null,null,null,null,null,null,null,null,null,null,"May"]
[null,null,null,null,null,null,null,null,null,null,"Jun"]
[null,null,null,null,null,null,null,null,null,null,"Jul"]
[null,null,null,null,null,null,null,null,null,null,"Aug"]
[null,null,null,null,null,null,null,null,null,null,"Sep"]
[null,null,null,null,null,null,null,null,null,null,"Oct"]
[null,null,null,null,null,null,null,null,null,null,"Nov"]
["Comments :",null,null,null,null,null,null,null,null,null,"Dec"]
[null,null,null,null,null,null,null,null,null,null,"Annual",{"$f":"AVERAGE(L37:L48)","v":{"$error":"#DIV/0!"}},{"$f":"MAX(M37:M48)","v":0},{"$f":"AVERAGE(N37:N48)","v":{"$error":"#DIV/0!"}},{"$f":"MAX(O37:O48)","v":0}]
[]
[null,null,null,null,null,null,null,null,null,{"$f":"+A6","v":2022},"mg/Nm3","Monthly 1/2 hourly mean","Monthly 1/2 hourly maximum","Monthly daily mean","Monthly daily maximum"]
[null,null,null,null,null,null,null,null,null,"A4","Jan"]
[null,null,null,null,null,null,null,null,null,null,"Feb"]
[null,null,"2023-02-24",null,null,null,null,null,null,null,"Mar"]
[null,null,null,null,null,null,null,null,null,null,"Apr"]
[null,null,null,null,null,null,null,null,null,null,"May"]
[null,null,null,null,null,null,null,null,null,null,"Jun"]
[null,null,null,null,null,null,null,null,null,null,"Jul"]
[null,null,null,null,null,null,null,null,null,null,"Aug"]
[null,null,null,null,null,null,null,null,null,null,"Sep"]
[null,null,null,null,null,null,null,null,null,null,"Oct"]
[null,null,null,null,null,null,null,null,null,null,"Nov"]
[null,null,null,null,null,null,null,null,null,null,"Dec"]
[null,null,null,null,null,null,null,null,null,null,"Annual",{"$f":"AVERAGE(L52:L63)","v":{"$error":"#DIV/0!"}},{"$f":"MAX(M52:M63)","v":0},{"$f":"AVERAGE(N52:N63)","v":{"$error":"#DIV/0!"}},{"$f":"MAX(O52:O63)","v":0}]
[]
[null,null,null,null,null,null,null,null,null,{"$f":"+A6","v":2022},"mg/Nm3","Monthly 1/2 hourly mean","Monthly 1/2 hourly maximum","Monthly daily mean","Monthly daily maximum"]
[null,null,null,null,null,null,null,null,null,"A5","Jan"]
[null,null,null,null,null,null,null,null,null,null,"Feb"]
[null,null,null,null,null,null,null,null,null,null,"Mar"]
[null,null,null,null,null,null,null,null,null,null,"Apr"]
[null,null,null,null,null,null,null,null,null,null,"May"]
[null,null,null,null,null,null,null,null,null,null,"Jun"]
[null,null,null,null,null,null,null,null,null,null,"Jul"]
[null,null,null,null,null,null,null,null,null,null,"Aug"]
[null,null,null,null,null,null,null,null,null,null,"Sep"]
[null,null,null,null,null,null,null,null,null,null,"Oct"]
[null,null,null,null,null,null,null,null,null,null,"Nov"]
[null,null,null,null,null,null,null,null,null,null,"Dec"]
[null,null,null,null,null,null,null,null,null,null,"Annual",{"$f":"AVERAGE(L67:L78)","v":{"$error":"#DIV/0!"}},{"$f":"MAX(M67:M78)","v":0},{"$f":"AVERAGE(N67:N78)","v":{"$error":"#DIV/0!"}},{"$f":"MAX(O67:O78)","v":0}]

{"sheet":"SO2","index":16,"n_rows":79,"n_cols":17,"rows_kept":79,"cut":false,"hidden":false,"merged":[[3,16,7,18],[9,16,11,18],[12,16,15,18],[66,9,78,9],[4,1,4,3],[4,4,4,6],[4,9,4,14],[6,9,18,9],[21,9,33,9],[36,9,48,9],[47,0,47,6],[48,0,51,6],[51,9,63,9]]}
[{"$f":"+'Cover Page'!$B$30","v":"Annual Performance Report 2022"},null,null,null,{"$f":"+'Cover Page'!$B$34","v":"Cornwall Energy Recovery Centre"}]
[]
["Monitoring of Sulphur dioxide emissions",null,null,"Whole Installation",null,null,"See  Notes in Cell Q3",null,null,{"$f":"+A3","v":"Monitoring of Sulphur dioxide emissions"},null,null,null,"Per Combustion Line",null,null,"Notes:"]
[null,null,null,null,null,null,null,null,null,null,null,null,null,null,null,null,"User to add logic to complete Whole installation, Table A5:G18. From the data in Per Combustion Line, Table J6:O79, subject to No. of lines installed"]
["mg/Nm3","1/2 Hourly Reference Periods",null,null,"Daily Reference Periods"]
[{"$f":"+'Cover Page'!C40","v":2022},"1/2 hourly SO2 ELV","Monthly 1/2 hourly mean","Highest 1/2 hourly maximum","Daily SO2 ELV","Monthly daily mean","Highest daily maximum",null,null,{"$f":"+A6","v":2022},"mg/Nm3","Monthly 1/2 hourly mean","Monthly 1/2 hourly maximum","Monthly daily mean","Monthly daily maximum"]
["Jan",200,{"$f":"AVERAGE(L7,L22)","v":12.5},{"$f":"AVERAGE(M7,M22)","v":32},50,{"$f":"AVERAGE(N7,N22)","v":12.5},{"$f":"AVERAGE(O7,O22)","v":17},null,null,"A1","Jan",13,25,13,17]
["Feb",200,{"$f":"AVERAGE(L8,L23)","v":15.5},46.5,50,{"$f":"AVERAGE(N8,N23)","v":15.5},19.5,null,null,null,"Feb",16,43,16,20]
["Mar",200,{"$f":"AVERAGE(L9,L24)","v":15.5},109,50,{"$f":"AVERAGE(N9,N24)","v":15.5},20,null,null,null,"Mar",16,178,16,21,null,"Whole Installation table A5:G18:"]
["Apr",200,{"$f":"AVERAGE(L10,L25)","v":10},33,50,{"$f":"AVERAGE(N10,N25)","v":10},13,null,null,null,"Apr",8,20,8,11,null,"Mean: for 1/2 hourly and daily periods calculate mean of values across all operational combustion lines for the month"]
["May",200,{"$f":"AVERAGE(L11,L26)","v":17},31.5,50,{"$f":"AVERAGE(N11,N26)","v":17},20,null,null,null,"May",16,29,16,20]
["Jun",200,{"$f":"AVERAGE(L12,L27)","v":16},32,50,{"$f":"AVERAGE(N12,N27)","v":16},18.5,null,null,null,"Jun",14,37,14,18]
["Jul",200,{"$f":"AVERAGE(L13,L28)","v":9.5},23,50,{"$f":"AVERAGE(N13,N28)","v":9.5},14,null,null,null,"Jul",7,19,7,13,null,"Maximum: for 1/2 hourly and daily periods use the highest value across all operational combustion lines for the month"]
["Aug",200,{"$f":"AVERAGE(L14,L29)","v":9},26,50,{"$f":"AVERAGE(N14,N29)","v":9},15,null,null,null,"Aug",7,26,7,13]
["Sep",200,{"$f":"AVERAGE(L15,L30)","v":9.5},26.5,50,{"$f":"AVERAGE(N15,N30)","v":9.5},15.5,null,null,null,"Sep",8,27,8,14]
["Oct",200,{"$f":"AVERAGE(L16,L31)","v":12},53.5,50,{"$f":"AVERAGE(N16,N31)","v":12},18.5,null,null,null,"Oct",12,81,12,18]
["Nov",200,{"$f":"AVERAGE(L17,L32)","v":15.5},28.5,50,{"$f":"AVERAGE(N17,N32)","v":15.5},18,null,null,null,"Nov",16,31,16,18]
["Dec",200,{"$f":"AVERAGE(L18,L33)","v":15.5},120.5,50,{"$f":"AVERAGE(N18,N33)","v":15.5},21,null,null,null,"Dec",16,189,16,20]
[null,null,null,null,null,null,null,null,null,null,"Annual",{"$f":"AVERAGE(L7:L18)","v":12.416666666666666},{"$f":"MAX(M7:M18)","v":189},{"$f":"AVERAGE(N7:N18)","v":12.416666666666666},{"$f":"MAX(O7:O18)","v":21}]
[]
[null,null,null,null,null,null,null,null,null,{"$f":"+A6","v":2022},"mg/Nm3","Monthly 1/2 hourly mean","Monthly 1/2 hourly maximum","Monthly daily mean","Monthly daily maximum"]
[null,null,null,null,null,null,null,null,null,"A2","Jan",12,39,12,17]
[null,null,null,null,null,null,null,null,null,null,"Feb",15,50,15,19]
[null,null,null,null,null,null,null,null,null,null,"Mar",15,40,15,19]
[null,null,null,null,null,null,null,null,null,null,"Apr",12,46,12,15]
[null,null,null,null,null,null,null,null,null,null,"May",18,34,18,20]
[null,null,null,null,null,null,null,null,null,null,"Jun",18,27,18,19]
[null,null,null,null,null,null,null,null,null,null,"Jul",12,27,12,15]
[null,null,null,null,null,null,null,null,null,null,"Aug",11,26,11,17]
[null,null,null,null,null,null,null,null,null,null,"Sep",11,26,11,17]
[null,null,null,null,null,null,null,null,null,null,"Oct",12,26,12,19]
[null,null,null,null,null,null,null,null,null,null,"Nov",15,26,15,18]
[null,null,null,null,null,null,null,null,null,null,"Dec",15,52,15,22]
[null,null,null,null,null,null,null,null,null,null,"Annual",{"$f":"AVERAGE(L22:L33)","v":13.833333333333334},{"$f":"MAX(M22:M33)","v":52},{"$f":"AVERAGE(N22:N33)","v":13.833333333333334},{"$f":"MAX(O22:O33)","v":22}]
[]
[null,null,null,null,null,null,null,null,null,{"$f":"+A6","v":2022},"mg/Nm3","Monthly 1/2 hourly mean","Monthly 1/2 hourly maximum","Monthly daily mean","Monthly daily maximum"]
[null,null,null,null,null,null,null,null,null,"A3","Jan"]
[null,null,null,null,null,null,null,null,null,null,"Feb"]
[null,null,null,null,null,null,null,null,null,null,"Mar"]
[null,null,null,null,null,null,null,null,null,null,"Apr"]
[null,null,null,null,null,null,null,null,null,null,"May"]
[null,null,null,null,null,null,null,null,null,null,"Jun"]
[null,null,null,null,null,null,null,null,null,null,"Jul"]
[null,null,null,null,null,null,null,null,null,null,"Aug"]
[null,null,null,null,null,null,null,null,null,null,"Sep"]
[null,null,null,null,null,null,null,null,null,null,"Oct"]
[null,null,null,null,null,null,null,null,null,null,"Nov"]
["Comments :",null,null,null,null,null,null,null,null,null,"Dec"]
[null,null,null,null,null,null,null,null,null,null,"Annual",{"$f":"AVERAGE(L37:L48)","v":{"$error":"#DIV/0!"}},{"$f":"MAX(M37:M48)","v":0},{"$f":"AVERAGE(N37:N48)","v":{"$error":"#DIV/0!"}},{"$f":"MAX(O37:O48)","v":0}]
[]
[null,null,null,null,null,null,null,null,null,{"$f":"+A6","v":2022},"mg/Nm3","Monthly 1/2 hourly mean","Monthly 1/2 hourly maximum","Monthly daily mean","Monthly daily maximum"]
[null,null,null,null,null,null,null,null,null,"A4","Jan"]
[null,null,null,null,null,null,null,null,null,null,"Feb"]
[null,null,"2023-02-24",null,null,null,null,null,null,null,"Mar"]
[null,null,null,null,null,null,null,null,null,null,"Apr"]
[null,null,null,null,null,null,null,null,null,null,"May"]
[null,null,null,null,null,null,null,null,null,null,"Jun"]
[null,null,null,null,null,null,null,null,null,null,"Jul"]
[null,null,null,null,null,null,null,null,null,null,"Aug"]
[null,null,null,null,null,null,null,null,null,null,"Sep"]
[null,null,null,null,null,null,null,null,null,null,"Oct"]
[null,null,null,null,null,null,null,null,null,null,"Nov"]
[null,null,null,null,null,null,null,null,null,null,"Dec"]
[null,null,null,null,null,null,null,null,null,null,"Annual",{"$f":"AVERAGE(L52:L63)","v":{"$error":"#DIV/0!"}},{"$f":"MAX(M52:M63)","v":0},{"$f":"AVERAGE(N52:N63)","v":{"$error":"#DIV/0!"}},{"$f":"MAX(O52:O63)","v":0}]
[]
[null,null,null,null,null,null,null,null,null,{"$f":"+A6","v":2022},"mg/Nm3","Monthly 1/2 hourly mean","Monthly 1/2 hourly maximum","Monthly daily mean","Monthly daily maximum"]
[null,null,null,null,null,null,null,null,null,"A5","Jan"]
[null,null,null,null,null,null,null,null,null,null,"Feb"]
[null,null,null,null,null,null,null,null,null,null,"Mar"]
[null,null,null,null,null,null,null,null,null,null,"Apr"]
[null,null,null,null,null,null,null,null,null,null,"May"]
[null,null,null,null,null,null,null,null,null,null,"Jun"]
[null,null,null,null,null,null,null,null,null,null,"Jul"]
[null,null,null,null,null,null,null,null,null,null,"Aug"]
[null,null,null,null,null,null,null,null,null,null,"Sep"]
[null,null,null,null,null,null,null,null,null,null,"Oct"]
[null,null,null,null,null,null,null,null,null,null,"Nov"]
[null,null,null,null,null,null,null,null,null,null,"Dec"]
[null,null,null,null,null,null,null,null,null,null,"Annual",{"$f":"AVERAGE(L67:L78)","v":{"$error":"#DIV/0!"}},{"$f":"MAX(M67:M78)","v":0},{"$f":"AVERAGE(N67:N78)","v":{"$error":"#DIV/0!"}},{"$f":"MAX(O67:O78)","v":0}]

{"sheet":"NOx","index":17,"n_rows":79,"n_cols":17,"rows_kept":79,"cut":false,"hidden":false,"merged":[[3,16,7,18],[9,16,11,18],[12,16,15,18],[66,9,78,9],[4,1,4,3],[4,4,4,6],[4,9,4,14],[6,9,18,9],[21,9,33,9],[36,9,48,9],[47,0,47,6],[48,0,51,6],[51,9,63,9]]}
[{"$f":"+'Cover Page'!$B$30","v":"Annual Performance Report 2022"},null,null,null,{"$f":"+'Cover Page'!$B$34","v":"Cornwall Energy Recovery Centre"}]
[]
["Monitoring of Oxides of Nitrogen emissions",null,null,"Whole Installation",null,null,"See  Notes in Cell Q3",null,null,{"$f":"+A3","v":"Monitoring of Oxides of Nitrogen emissions"},null,null,null,"Per Combustion Line",null,null,"Notes:"]
[null,null,null,null,null,null,null,null,null,null,null,null,null,null,null,null,"User to add logic to complete Whole installation, Table A5:G18. From the data in Per Combustion Line, Table J6:O79, subject to No. of lines installed"]
["mg/Nm3","1/2 Hourly Reference Periods",null,null,"Daily Reference Periods"]
[{"$f":"+'Cover Page'!C40","v":2022},"1/2 hourly NOx ELV","Monthly 1/2 hourly mean","Highest 1/2 hourly maximum","Daily NOx ELV","Monthly daily mean","Highest daily maximum",null,null,{"$f":"+A6","v":2022},"mg/Nm3","Monthly 1/2 hourly mean","Monthly 1/2 hourly maximum","Monthly daily mean","Monthly daily maximum"]
["Jan",400,{"$f":"AVERAGE(L7,L22)","v":138.35},{"$f":"AVERAGE(M7,M22)","v":169},200,{"$f":"AVERAGE(N7,N22)","v":138.35},{"$f":"AVERAGE(O7,O22)","v":145.5},null,null,"A1","Jan",134,155,134,143]
["Feb",400,{"$f":"AVERAGE(L8,L23)","v":140},159,200,{"$f":"AVERAGE(N8,N23)","v":140},144.5,null,null,null,"Feb",135.9,158,135.9,141]
["Mar",400,{"$f":"AVERAGE(L9,L24)","v":139.4},157.5,200,{"$f":"AVERAGE(N9,N24)","v":139.4},145,null,null,null,"Mar",135.80000000000001,155,135.80000000000001,142,null,"Whole Installation table A5:G18:"]
["Apr",400,{"$f":"AVERAGE(L10,L25)","v":135.9},162.5,200,{"$f":"AVERAGE(N10,N25)","v":135.9},144.5,null,null,null,"Apr",137.9,163,137.9,146,null,"Mean: for 1/2 hourly and daily periods calculate mean of values across all operational combustion lines for the month"]
["May",400,{"$f":"AVERAGE(L11,L26)","v":138},159.5,200,{"$f":"AVERAGE(N11,N26)","v":138},145,null,null,null,"May",136.19999999999999,158,136.19999999999999,144]
["Jun",400,{"$f":"AVERAGE(L12,L27)","v":139.39999999999998},159.5,200,{"$f":"AVERAGE(N12,N27)","v":139.39999999999998},145.5,null,null,null,"Jun",137.1,156,137.1,144]
["Jul",400,{"$f":"AVERAGE(L13,L28)","v":137.75},173.5,200,{"$f":"AVERAGE(N13,N28)","v":137.75},142.5,null,null,null,"Jul",135.6,171,135.6,142,null,"Maximum: for 1/2 hourly and daily periods use the highest value across all operational combustion lines for the month"]
["Aug",400,{"$f":"AVERAGE(L14,L29)","v":135.35000000000002},156,200,{"$f":"AVERAGE(N14,N29)","v":135.35000000000002},142,null,null,null,"Aug",136.9,156,136.9,140]
["Sep",400,{"$f":"AVERAGE(L15,L30)","v":140.64999999999998},166.5,200,{"$f":"AVERAGE(N15,N30)","v":140.64999999999998},144.5,null,null,null,"Sep",138.19999999999999,178,138.19999999999999,144]
["Oct",400,{"$f":"AVERAGE(L16,L31)","v":132.55000000000001},156.5,200,{"$f":"AVERAGE(N16,N31)","v":132.55000000000001},140.5,null,null,null,"Oct",127.8,156,127.8,137]
["Nov",400,{"$f":"AVERAGE(L17,L32)","v":127.80000000000001},154,200,{"$f":"AVERAGE(N17,N32)","v":127.80000000000001},138,null,null,null,"Nov",126.7,155,126.7,138]
["Dec",400,{"$f":"AVERAGE(L18,L33)","v":134.10000000000002},159,200,{"$f":"AVERAGE(N18,N33)","v":134.10000000000002},141,null,null,null,"Dec",133.30000000000001,154,133.30000000000001,139]
[null,null,null,null,null,null,null,null,null,null,"Annual",{"$f":"AVERAGE(L7:L18)","v":134.61666666666667},{"$f":"MAX(M7:M18)","v":178},{"$f":"AVERAGE(N7:N18)","v":134.61666666666667},{"$f":"MAX(O7:O18)","v":146}]
[]
[null,null,null,null,null,null,null,null,null,{"$f":"+A6","v":2022},"mg/Nm3","Monthly 1/2 hourly mean","Monthly 1/2 hourly maximum","Monthly daily mean","Monthly daily maximum"]
[null,null,null,null,null,null,null,null,null,"A2","Jan",142.69999999999999,183,142.69999999999999,148]
[null,null,null,null,null,null,null,null,null,null,"Feb",144.1,160,144.1,148]
[null,null,null,null,null,null,null,null,null,null,"Mar",143,160,143,148]
[null,null,null,null,null,null,null,null,null,null,"Apr",133.9,162,133.9,143]
[null,null,null,null,null,null,null,null,null,null,"May",139.80000000000001,161,139.80000000000001,146]
[null,null,null,null,null,null,null,null,null,null,"Jun",141.69999999999999,163,141.69999999999999,147]
[null,null,null,null,null,null,null,null,null,null,"Jul",139.9,176,139.9,143]
[null,null,null,null,null,null,null,null,null,null,"Aug",133.80000000000001,156,133.80000000000001,144]
[null,null,null,null,null,null,null,null,null,null,"Sep",143.1,155,143.1,145]
[null,null,null,null,null,null,null,null,null,null,"Oct",137.30000000000001,157,137.30000000000001,144]
[null,null,null,null,null,null,null,null,null,null,"Nov",128.9,153,128.9,138]
[null,null,null,null,null,null,null,null,null,null,"Dec",134.9,164,134.9,143]
[null,null,null,null,null,null,null,null,null,null,"Annual",{"$f":"AVERAGE(L22:L33)","v":138.59166666666667},{"$f":"MAX(M22:M33)","v":183},{"$f":"AVERAGE(N22:N33)","v":138.59166666666667},{"$f":"MAX(O22:O33)","v":148}]
[]
[null,null,null,null,null,null,null,null,null,{"$f":"+A6","v":2022},"mg/Nm3","Monthly 1/2 hourly mean","Monthly 1/2 hourly maximum","Monthly daily mean","Monthly daily maximum"]
[null,null,null,null,null,null,null,null,null,"A3","Jan"]
[null,null,null,null,null,null,null,null,null,null,"Feb"]
[null,null,null,null,null,null,null,null,null,null,"Mar"]
[null,null,null,null,null,null,null,null,null,null,"Apr"]
[null,null,null,null,null,null,null,null,null,null,"May"]
[null,null,null,null,null,null,null,null,null,null,"Jun"]
[null,null,null,null,null,null,null,null,null,null,"Jul"]
[null,null,null,null,null,null,null,null,null,null,"Aug"]
[null,null,null,null,null,null,null,null,null,null,"Sep"]
[null,null,null,null,null,null,null,null,null,null,"Oct"]
[null,null,null,null,null,null,null,null,null,null,"Nov"]
["Comments :",null,null,null,null,null,null,null,null,null,"Dec"]
[null,null,null,null,null,null,null,null,null,null,"Annual",{"$f":"AVERAGE(L37:L48)","v":{"$error":"#DIV/0!"}},{"$f":"MAX(M37:M48)","v":0},{"$f":"AVERAGE(N37:N48)","v":{"$error":"#DIV/0!"}},{"$f":"MAX(O37:O48)","v":0}]
[]
[null,null,null,null,null,null,null,null,null,{"$f":"+A6","v":2022},"mg/Nm3","Monthly 1/2 hourly mean","Monthly 1/2 hourly maximum","Monthly daily mean","Monthly daily maximum"]
[null,null,null,null,null,null,null,null,null,"A4","Jan"]
[null,null,null,null,null,null,null,null,null,null,"Feb"]
[null,null,"2023-02-24",null,null,null,null,null,null,null,"Mar"]
[null,null,null,null,null,null,null,null,null,null,"Apr"]
[null,null,null,null,null,null,null,null,null,null,"May"]
[null,null,null,null,null,null,null,null,null,null,"Jun"]
[null,null,null,null,null,null,null,null,null,null,"Jul"]
[null,null,null,null,null,null,null,null,null,null,"Aug"]
[null,null,null,null,null,null,null,null,null,null,"Sep"]
[null,null,null,null,null,null,null,null,null,null,"Oct"]
[null,null,null,null,null,null,null,null,null,null,"Nov"]
[null,null,null,null,null,null,null,null,null,null,"Dec"]
[null,null,null,null,null,null,null,null,null,null,"Annual",{"$f":"AVERAGE(L52:L63)","v":{"$error":"#DIV/0!"}},{"$f":"MAX(M52:M63)","v":0},{"$f":"AVERAGE(N52:N63)","v":{"$error":"#DIV/0!"}},{"$f":"MAX(O52:O63)","v":0}]
[]
[null,null,null,null,null,null,null,null,null,{"$f":"+A6","v":2022},"mg/Nm3","Monthly 1/2 hourly mean","Monthly 1/2 hourly maximum","Monthly daily mean","Monthly daily maximum"]
[null,null,null,null,null,null,null,null,null,"A5","Jan"]
[null,null,null,null,null,null,null,null,null,null,"Feb"]
[null,null,null,null,null,null,null,null,null,null,"Mar"]
[null,null,null,null,null,null,null,null,null,null,"Apr"]
[null,null,null,null,null,null,null,null,null,null,"May"]
[null,null,null,null,null,null,null,null,null,null,"Jun"]
[null,null,null,null,null,null,null,null,null,null,"Jul"]
[null,null,null,null,null,null,null,null,null,null,"Aug"]
[null,null,null,null,null,null,null,null,null,null,"Sep"]
[null,null,null,null,null,null,null,null,null,null,"Oct"]
[null,null,null,null,null,null,null,null,null,null,"Nov"]
[null,null,null,null,null,null,null,null,null,null,"Dec"]
[null,null,null,null,null,null,null,null,null,null,"Annual",{"$f":"AVERAGE(L67:L78)","v":{"$error":"#DIV/0!"}},{"$f":"MAX(M67:M78)","v":0},{"$f":"AVERAGE(N67:N78)","v":{"$error":"#DIV/0!"}},{"$f":"MAX(O67:O78)","v":0}]

{"sheet":"TOC","index":18,"n_rows":79,"n_cols":17,"rows_kept":79,"cut":false,"hidden":false,"merged":[[3,16,7,18],[9,16,11,18],[12,16,15,18],[66,9,78,9],[4,1,4,3],[4,4,4,6],[4,9,4,14],[6,9,18,9],[21,9,33,9],[36,9,48,9],[47,0,47,6],[48,0,51,6],[51,9,63,9]]}
[{"$f":"+'Cover Page'!$B$30","v":"Annual Performance Report 2022"},null,null,null,{"$f":"+'Cover Page'!$B$34","v":"Cornwall Energy Recovery Centre"}]
[]
["Monitoring of Total organic carbon emissions",null,null,"Whole Installation",null,null,"See  Notes in Cell Q3",null,null,{"$f":"+A3","v":"Monitoring of Total organic carbon emissions"},null,null,null,"Per Combustion Line",null,null,"Notes:"]
[null,null,null,null,null,null,null,null,null,null,null,null,null,null,null,null,"User to add logic to complete Whole installation, Table A5:G18. From the data in Per Combustion Line, Table J6:O79, subject to No. of lines installed"]
["mg/Nm3","1/2 Hourly Reference Periods",null,null,"Daily Reference Periods"]
[{"$f":"+'Cover Page'!C40","v":2022},"1/2 hourly TOC ELV","Monthly 1/2 hourly mean","Highest 1/2 hourly maximum","Daily TOC ELV","Monthly daily mean","Highest daily maximum",null,null,{"$f":"+A6","v":2022},"mg/Nm3","Monthly 1/2 hourly mean","Monthly 1/2 hourly maximum","Monthly daily mean","Monthly daily maximum"]
["Jan",20,{"$f":"AVERAGE(L7,L22)","v":0.35},{"$f":"AVERAGE(M7,M22)","v":2.1},10,{"$f":"AVERAGE(N7,N22)","v":0.35},{"$f":"AVERAGE(O7,O22)","v":0.35},null,null,"A1","Jan",0.4,0.8,0.4,0.4]
["Feb",20,{"$f":"AVERAGE(L8,L23)","v":0.3},6.3500000000000005,10,{"$f":"AVERAGE(N8,N23)","v":0.3},0.55000000000000004,null,null,null,"Feb",0.3,2.9,0.3,0.5]
["Mar",20,{"$f":"AVERAGE(L9,L24)","v":0.2},0.9,10,{"$f":"AVERAGE(N9,N24)","v":0.2},0.35,null,null,null,"Mar",0.2,1.1000000000000001,0.2,0.4,null,"Whole Installation table A5:G18:"]
["Apr",20,{"$f":"AVERAGE(L10,L25)","v":0.4},4.5,10,{"$f":"AVERAGE(N10,N25)","v":0.4},0.85000000000000009,null,null,null,"Apr",0.5,6.1,0.5,0.9,null,"Mean: for 1/2 hourly and daily periods calculate mean of values across all operational combustion lines for the month"]
["May",20,{"$f":"AVERAGE(L11,L26)","v":0},0.5,10,{"$f":"AVERAGE(N11,N26)","v":0},0.44999999999999996,null,null,null,"May",0,0.4,0,0.3]
["Jun",20,{"$f":"AVERAGE(L12,L27)","v":0.45},2.6,10,{"$f":"AVERAGE(N12,N27)","v":0.45},0.64999999999999991,null,null,null,"Jun",0.5,3.4,0.5,0.7]
["Jul",20,{"$f":"AVERAGE(L13,L28)","v":0.35},3.35,10,{"$f":"AVERAGE(N13,N28)","v":0.35},0.45,null,null,null,"Jul",0.4,2.5,0.4,0.4,null,"Maximum: for 1/2 hourly and daily periods use the highest value across all operational combustion lines for the month"]
["Aug",20,{"$f":"AVERAGE(L14,L29)","v":0.35},4.45,10,{"$f":"AVERAGE(N14,N29)","v":0.35},0.5,null,null,null,"Aug",0.3,1.8,0.3,0.4]
["Sep",20,{"$f":"AVERAGE(L15,L30)","v":0.25},1.5,10,{"$f":"AVERAGE(N15,N30)","v":0.25},0.35,null,null,null,"Sep",0.3,0.5,0.3,0.4]
["Oct",20,{"$f":"AVERAGE(L16,L31)","v":0.2},2.6,10,{"$f":"AVERAGE(N16,N31)","v":0.2},0.5,null,null,null,"Oct",0.3,2,0.3,0.6]
["Nov",20,{"$f":"AVERAGE(L17,L32)","v":0.1},2.35,10,{"$f":"AVERAGE(N17,N32)","v":0.1},0.30000000000000004,null,null,null,"Nov",0.2,1.8,0.2,0.2]
["Dec",20,{"$f":"AVERAGE(L18,L33)","v":0.35},2.95,10,{"$f":"AVERAGE(N18,N33)","v":0.35},0.35,null,null,null,"Dec",0.4,2.6,0.4,0.4]
[null,null,null,null,null,null,null,null,null,null,"Annual",{"$f":"AVERAGE(L7:L18)","v":0.3166666666666666},{"$f":"MAX(M7:M18)","v":6.1},{"$f":"AVERAGE(N7:N18)","v":0.3166666666666666},{"$f":"MAX(O7:O18)","v":0.9}]
[]
[null,null,null,null,null,null,null,null,null,{"$f":"+A6","v":2022},"mg/Nm3","Monthly 1/2 hourly mean","Monthly 1/2 hourly maximum","Monthly daily mean","Monthly daily maximum"]
[null,null,null,null,null,null,null,null,null,"A2","Jan",0.3,3.4,0.3,0.3]
[null,null,null,null,null,null,null,null,null,null,"Feb",0.3,9.8000000000000007,0.3,0.6]
[null,null,null,null,null,null,null,null,null,null,"Mar",0.2,0.7,0.2,0.3]
[null,null,null,null,null,null,null,null,null,null,"Apr",0.3,2.9,0.3,0.8]
[null,null,null,null,null,null,null,null,null,null,"May",0,0.6,0,0.6]
[null,null,null,null,null,null,null,null,null,null,"Jun",0.4,1.8,0.4,0.6]
[null,null,null,null,null,null,null,null,null,null,"Jul",0.3,4.2,0.3,0.5]
[null,null,null,null,null,null,null,null,null,null,"Aug",0.4,7.1,0.4,0.6]
[null,null,null,null,null,null,null,null,null,null,"Sep",0.2,2.5,0.2,0.3]
[null,null,null,null,null,null,null,null,null,null,"Oct",0.1,3.2,0.1,0.4]
[null,null,null,null,null,null,null,null,null,null,"Nov",0,2.9,0,0.4]
[null,null,null,null,null,null,null,null,null,null,"Dec",0.3,3.3,0.3,0.3]
[null,null,null,null,null,null,null,null,null,null,"Annual",{"$f":"AVERAGE(L22:L33)","v":0.23333333333333336},{"$f":"MAX(M22:M33)","v":9.8000000000000007},{"$f":"AVERAGE(N22:N33)","v":0.23333333333333336},{"$f":"MAX(O22:O33)","v":0.8}]
[]
[null,null,null,null,null,null,null,null,null,{"$f":"+A6","v":2022},"mg/Nm3","Monthly 1/2 hourly mean","Monthly 1/2 hourly maximum","Monthly daily mean","Monthly daily maximum"]
[null,null,null,null,null,null,null,null,null,"A3","Jan"]
[null,null,null,null,null,null,null,null,null,null,"Feb"]
[null,null,null,null,null,null,null,null,null,null,"Mar"]
[null,null,null,null,null,null,null,null,null,null,"Apr"]
[null,null,null,null,null,null,null,null,null,null,"May"]
[null,null,null,null,null,null,null,null,null,null,"Jun"]
[null,null,null,null,null,null,null,null,null,null,"Jul"]
[null,null,null,null,null,null,null,null,null,null,"Aug"]
[null,null,null,null,null,null,null,null,null,null,"Sep"]
[null,null,null,null,null,null,null,null,null,null,"Oct"]
[null,null,null,null,null,null,null,null,null,null,"Nov"]
["Comments :",null,null,null,null,null,null,null,null,null,"Dec"]
[null,null,null,null,null,null,null,null,null,null,"Annual",{"$f":"AVERAGE(L37:L48)","v":{"$error":"#DIV/0!"}},{"$f":"MAX(M37:M48)","v":0},{"$f":"AVERAGE(N37:N48)","v":{"$error":"#DIV/0!"}},{"$f":"MAX(O37:O48)","v":0}]
[]
[null,null,null,null,null,null,null,null,null,{"$f":"+A6","v":2022},"mg/Nm3","Monthly 1/2 hourly mean","Monthly 1/2 hourly maximum","Monthly daily mean","Monthly daily maximum"]
[null,null,null,null,null,null,null,null,null,"A4","Jan"]
[null,null,null,null,null,null,null,null,null,null,"Feb"]
[null,null,"2023-02-24",null,null,null,null,null,null,null,"Mar"]
[null,null,null,null,null,null,null,null,null,null,"Apr"]
[null,null,null,null,null,null,null,null,null,null,"May"]
[null,null,null,null,null,null,null,null,null,null,"Jun"]
[null,null,null,null,null,null,null,null,null,null,"Jul"]
[null,null,null,null,null,null,null,null,null,null,"Aug"]
[null,null,null,null,null,null,null,null,null,null,"Sep"]
[null,null,null,null,null,null,null,null,null,null,"Oct"]
[null,null,null,null,null,null,null,null,null,null,"Nov"]
[null,null,null,null,null,null,null,null,null,null,"Dec"]
[null,null,null,null,null,null,null,null,null,null,"Annual",{"$f":"AVERAGE(L52:L63)","v":{"$error":"#DIV/0!"}},{"$f":"MAX(M52:M63)","v":0},{"$f":"AVERAGE(N52:N63)","v":{"$error":"#DIV/0!"}},{"$f":"MAX(O52:O63)","v":0}]
[]
[null,null,null,null,null,null,null,null,null,{"$f":"+A6","v":2022},"mg/Nm3","Monthly 1/2 hourly mean","Monthly 1/2 hourly maximum","Monthly daily mean","Monthly daily maximum"]
[null,null,null,null,null,null,null,null,null,"A5","Jan"]
[null,null,null,null,null,null,null,null,null,null,"Feb"]
[null,null,null,null,null,null,null,null,null,null,"Mar"]
[null,null,null,null,null,null,null,null,null,null,"Apr"]
[null,null,null,null,null,null,null,null,null,null,"May"]
[null,null,null,null,null,null,null,null,null,null,"Jun"]
[null,null,null,null,null,null,null,null,null,null,"Jul"]
[null,null,null,null,null,null,null,null,null,null,"Aug"]
[null,null,null,null,null,null,null,null,null,null,"Sep"]
[null,null,null,null,null,null,null,null,null,null,"Oct"]
[null,null,null,null,null,null,null,null,null,null,"Nov"]
[null,null,null,null,null,null,null,null,null,null,"Dec"]
[null,null,null,null,null,null,null,null,null,null,"Annual",{"$f":"AVERAGE(L67:L78)","v":{"$error":"#DIV/0!"}},{"$f":"MAX(M67:M78)","v":0},{"$f":"AVERAGE(N67:N78)","v":{"$error":"#DIV/0!"}},{"$f":"MAX(O67:O78)","v":0}]

{"sheet":"Particulates","index":19,"n_rows":79,"n_cols":17,"rows_kept":79,"cut":false,"hidden":false,"merged":[[3,16,7,18],[9,16,11,18],[12,16,15,18],[66,9,78,9],[4,1,4,3],[4,4,4,6],[4,9,4,14],[6,9,18,9],[21,9,33,9],[36,9,48,9],[47,0,47,6],[48,0,51,6],[51,9,63,9]]}
[{"$f":"+'Cover Page'!$B$30","v":"Annual Performance Report 2022"},null,null,null,{"$f":"+'Cover Page'!$B$34","v":"Cornwall Energy Recovery Centre"}]
[]
["Monitoring of Particulate matter emissions",null,null,"Whole Installation",null,null,"See  Notes in Cell Q3",null,null,{"$f":"+A3","v":"Monitoring of Particulate matter emissions"},null,null,null,"Per Combustion Line",null,null,"Notes:"]
[null,null,null,null,null,null,null,null,null,null,null,null,null,null,null,null,"User to add logic to complete Whole installation, Table A5:G18. From the data in Per Combustion Line, Table J6:O79, subject to No. of lines installed"]
["mg/Nm3","1/2 Hourly Reference Periods",null,null,"Daily Reference Periods"]
[{"$f":"+'Cover Page'!C40","v":2022},"1/2 hourly PM ELV","Monthly 1/2 hourly mean","Highest 1/2 hourly maximum","Daily PM ELV","Monthly daily mean","Highest daily maximum",null,null,{"$f":"+A6","v":2022},"mg/Nm3","Monthly 1/2 hourly mean","Monthly 1/2 hourly maximum","Monthly daily mean","Monthly daily maximum"]
["Jan",30,{"$f":"AVERAGE(L7,L22)","v":0.45},{"$f":"AVERAGE(M7,M22)","v":1.45},10,{"$f":"AVERAGE(N7,N22)","v":0.45},{"$f":"AVERAGE(O7,O22)","v":0.8},null,null,"A1","Jan",0.5,1.2,0.5,0.6]
["Feb",30,{"$f":"AVERAGE(L8,L23)","v":0.55000000000000004},2.75,10,{"$f":"AVERAGE(N8,N23)","v":0.55000000000000004},1.4000000000000001,null,null,null,"Feb",0.7,4.4000000000000004,0.7,2.2000000000000002]
["Mar",30,{"$f":"AVERAGE(L9,L24)","v":0.6},1.9,10,{"$f":"AVERAGE(N9,N24)","v":0.6},1.05,null,null,null,"Mar",0.9,2.2999999999999998,0.9,1.7,null,"Whole Installation table A5:G18:"]
["Apr",30,{"$f":"AVERAGE(L10,L25)","v":0.44999999999999996},0.95,10,{"$f":"AVERAGE(N10,N25)","v":0.44999999999999996},0.7,null,null,null,"Apr",0.6,1.3,0.6,0.9,null,"Mean: for 1/2 hourly and daily periods calculate mean of values across all operational combustion lines for the month"]
["May",30,{"$f":"AVERAGE(L11,L26)","v":0.8},19,10,{"$f":"AVERAGE(N11,N26)","v":0.8},1.9,null,null,null,"May",0.9,17.600000000000001,0.9,1.3]
["Jun",30,{"$f":"AVERAGE(L12,L27)","v":0.4},1.4,10,{"$f":"AVERAGE(N12,N27)","v":0.4},0.8,null,null,null,"Jun",0.4,1.4,0.4,0.7]
["Jul",30,{"$f":"AVERAGE(L13,L28)","v":0.45},2.2000000000000002,10,{"$f":"AVERAGE(N13,N28)","v":0.45},1.75,null,null,null,"Jul",0.4,0.7,0.4,0.5,null,"Maximum: for 1/2 hourly and daily periods use the highest value across all operational combustion lines for the month"]
["Aug",30,{"$f":"AVERAGE(L14,L29)","v":0.30000000000000004},2.5,10,{"$f":"AVERAGE(N14,N29)","v":0.30000000000000004},0.8,null,null,null,"Aug",0.4,0.8,0.4,0.5]
["Sep",30,{"$f":"AVERAGE(L15,L30)","v":0.25},0.44999999999999996,10,{"$f":"AVERAGE(N15,N30)","v":0.25},0.25,null,null,null,"Sep",0.4,0.6,0.4,0.4]
["Oct",30,{"$f":"AVERAGE(L16,L31)","v":0.25},0.7,10,{"$f":"AVERAGE(N16,N31)","v":0.25},0.4,null,null,null,"Oct",0.4,1,0.4,0.6]
["Nov",30,{"$f":"AVERAGE(L17,L32)","v":0.5},5.95,10,{"$f":"AVERAGE(N17,N32)","v":0.5},1.4000000000000001,null,null,null,"Nov",0.9,11.6,0.9,2.6]
["Dec",30,{"$f":"AVERAGE(L18,L33)","v":0.55000000000000004},2.3499999999999996,10,{"$f":"AVERAGE(N18,N33)","v":0.55000000000000004},1.35,null,null,null,"Dec",0.8,3.3,0.8,2]
[null,null,null,null,null,null,null,null,null,null,"Annual",{"$f":"AVERAGE(L7:L18)","v":0.6083333333333335},{"$f":"MAX(M7:M18)","v":17.600000000000001},{"$f":"AVERAGE(N7:N18)","v":0.6083333333333335},{"$f":"MAX(O7:O18)","v":2.6}]
[]
[null,null,null,null,null,null,null,null,null,{"$f":"+A6","v":2022},"mg/Nm3","Monthly 1/2 hourly mean","Monthly 1/2 hourly maximum","Monthly daily mean","Monthly daily maximum"]
[null,null,null,null,null,null,null,null,null,"A2","Jan",0.4,1.7,0.4,1]
[null,null,null,null,null,null,null,null,null,null,"Feb",0.4,1.1000000000000001,0.4,0.6]
[null,null,null,null,null,null,null,null,null,null,"Mar",0.3,1.5,0.3,0.4]
[null,null,null,null,null,null,null,null,null,null,"Apr",0.3,0.6,0.3,0.5]
[null,null,null,null,null,null,null,null,null,null,"May",0.7,20.399999999999999,0.7,2.5]
[null,null,null,null,null,null,null,null,null,null,"Jun",0.4,1.4,0.4,0.9]
[null,null,null,null,null,null,null,null,null,null,"Jul",0.5,3.7,0.5,3]
[null,null,null,null,null,null,null,null,null,null,"Aug",0.2,4.2,0.2,1.1000000000000001]
[null,null,null,null,null,null,null,null,null,null,"Sep",0.1,0.3,0.1,0.1]
[null,null,null,null,null,null,null,null,null,null,"Oct",0.1,0.4,0.1,0.2]
[null,null,null,null,null,null,null,null,null,null,"Nov",0.1,0.3,0.1,0.2]
[null,null,null,null,null,null,null,null,null,null,"Dec",0.3,1.4,0.3,0.7]
[null,null,null,null,null,null,null,null,null,null,"Annual",{"$f":"AVERAGE(L22:L33)","v":0.31666666666666671},{"$f":"MAX(M22:M33)","v":20.399999999999999},{"$f":"AVERAGE(N22:N33)","v":0.31666666666666671},{"$f":"MAX(O22:O33)","v":3}]
[]
[null,null,null,null,null,null,null,null,null,{"$f":"+A6","v":2022},"mg/Nm3","Monthly 1/2 hourly mean","Monthly 1/2 hourly maximum","Monthly daily mean","Monthly daily maximum"]
[null,null,null,null,null,null,null,null,null,"A3","Jan"]
[null,null,null,null,null,null,null,null,null,null,"Feb"]
[null,null,null,null,null,null,null,null,null,null,"Mar"]
[null,null,null,null,null,null,null,null,null,null,"Apr"]
[null,null,null,null,null,null,null,null,null,null,"May"]
[null,null,null,null,null,null,null,null,null,null,"Jun"]
[null,null,null,null,null,null,null,null,null,null,"Jul"]
[null,null,null,null,null,null,null,null,null,null,"Aug"]
[null,null,null,null,null,null,null,null,null,null,"Sep"]
[null,null,null,null,null,null,null,null,null,null,"Oct"]
[null,null,null,null,null,null,null,null,null,null,"Nov"]
["Comments :",null,null,null,null,null,null,null,null,null,"Dec"]
[null,null,null,null,null,null,null,null,null,null,"Annual",{"$f":"AVERAGE(L37:L48)","v":{"$error":"#DIV/0!"}},{"$f":"MAX(M37:M48)","v":0},{"$f":"AVERAGE(N37:N48)","v":{"$error":"#DIV/0!"}},{"$f":"MAX(O37:O48)","v":0}]
[]
[null,null,null,null,null,null,null,null,null,{"$f":"+A6","v":2022},"mg/Nm3","Monthly 1/2 hourly mean","Monthly 1/2 hourly maximum","Monthly daily mean","Monthly daily maximum"]
[null,null,null,null,null,null,null,null,null,"A4","Jan"]
[null,null,null,null,null,null,null,null,null,null,"Feb"]
[null,null,"2023-02-24",null,null,null,null,null,null,null,"Mar"]
[null,null,null,null,null,null,null,null,null,null,"Apr"]
[null,null,null,null,null,null,null,null,null,null,"May"]
[null,null,null,null,null,null,null,null,null,null,"Jun"]
[null,null,null,null,null,null,null,null,null,null,"Jul"]
[null,null,null,null,null,null,null,null,null,null,"Aug"]
[null,null,null,null,null,null,null,null,null,null,"Sep"]
[null,null,null,null,null,null,null,null,null,null,"Oct"]
[null,null,null,null,null,null,null,null,null,null,"Nov"]
[null,null,null,null,null,null,null,null,null,null,"Dec"]
[null,null,null,null,null,null,null,null,null,null,"Annual",{"$f":"AVERAGE(L52:L63)","v":{"$error":"#DIV/0!"}},{"$f":"MAX(M52:M63)","v":0},{"$f":"AVERAGE(N52:N63)","v":{"$error":"#DIV/0!"}},{"$f":"MAX(O52:O63)","v":0}]
[]
[null,null,null,null,null,null,null,null,null,{"$f":"+A6","v":2022},"mg/Nm3","Monthly 1/2 hourly mean","Monthly 1/2 hourly maximum","Monthly daily mean","Monthly daily maximum"]
[null,null,null,null,null,null,null,null,null,"A5","Jan"]
[null,null,null,null,null,null,null,null,null,null,"Feb"]
[null,null,null,null,null,null,null,null,null,null,"Mar"]
[null,null,null,null,null,null,null,null,null,null,"Apr"]
[null,null,null,null,null,null,null,null,null,null,"May"]
[null,null,null,null,null,null,null,null,null,null,"Jun"]
[null,null,null,null,null,null,null,null,null,null,"Jul"]
[null,null,null,null,null,null,null,null,null,null,"Aug"]
[null,null,null,null,null,null,null,null,null,null,"Sep"]
[null,null,null,null,null,null,null,null,null,null,"Oct"]
[null,null,null,null,null,null,null,null,null,null,"Nov"]
[null,null,null,null,null,null,null,null,null,null,"Dec"]
[null,null,null,null,null,null,null,null,null,null,"Annual",{"$f":"AVERAGE(L67:L78)","v":{"$error":"#DIV/0!"}},{"$f":"MAX(M67:M78)","v":0},{"$f":"AVERAGE(N67:N78)","v":{"$error":"#DIV/0!"}},{"$f":"MAX(O67:O78)","v":0}]

{"sheet":"CO 0.5hourly","index":20,"n_rows":79,"n_cols":17,"rows_kept":79,"cut":false,"hidden":false,"merged":[[3,16,7,18],[9,16,11,18],[12,16,15,18],[66,9,78,9],[4,1,4,3],[4,4,4,6],[4,9,4,14],[6,9,18,9],[21,9,33,9],[36,9,48,9],[47,0,47,6],[48,0,51,6],[51,9,63,9]]}
[{"$f":"+'Cover Page'!$B$30","v":"Annual Performance Report 2022"},null,null,null,{"$f":"+'Cover Page'!$B$34","v":"Cornwall Energy Recovery Centre"}]
[]
["Monitoring of Carbon Monoxide (half hourly)",null,null,"Whole Installation",null,null,"See  Notes in Cell Q3",null,null,{"$f":"+A3","v":"Monitoring of Carbon Monoxide (half hourly)"},null,null,null,"Per Combustion Line",null,null,"Notes:"]
[null,null,null,null,null,null,null,null,null,null,null,null,null,null,null,null,"User to add logic to complete Whole installation, Table A5:G18. From the data in Per Combustion Line, Table J6:O79, subject to No. of lines installed"]
["mg/Nm3","1/2 Hourly Reference Periods",null,null,"Daily Reference Periods"]
[{"$f":"+'Cover Page'!C40","v":2022},"1/2 hourly CO ELV","Monthly 1/2 hourly mean","Highest 1/2 hourly maximum","Daily CO ELV","Monthly daily mean","Highest daily maximum",null,null,{"$f":"+A6","v":2022},"mg/Nm3","Monthly 1/2 hourly mean","Monthly 1/2 hourly maximum","Monthly daily mean","Monthly daily maximum"]
["Jan",100,{"$f":"AVERAGE(L7,L22)","v":1.5},{"$f":"AVERAGE(M7,M22)","v":42.9},50,{"$f":"AVERAGE(N7,N22)","v":1.5},{"$f":"AVERAGE(O7,O22)","v":4.5},null,null,"A1","Jan",0,1.8,0,3]
["Feb",{"$f":"+B7","v":100},{"$f":"AVERAGE(L8,L23)","v":1},33,{"$f":"+E7","v":50},{"$f":"AVERAGE(N8,N23)","v":1},{"$f":"AVERAGE(O8,O23)","v":3},null,null,null,"Feb",0,59,0,3]
["Mar",{"$f":"+B8","v":100},{"$f":"AVERAGE(L9,L24)","v":{"$error":"#DIV/0!"}},{"$error":"#DIV/0!"},{"$f":"+E8","v":50},null,null,null,null,null,"Mar",null,null,null,null,null,"Whole Installation table A5:G18:"]
["Apr",100,{"$f":"AVERAGE(L10,L25)","v":{"$error":"#DIV/0!"}},{"$error":"#DIV/0!"},50,null,null,null,null,null,"Apr",null,null,null,null,null,"Mean: for 1/2 hourly and daily periods calculate mean of values across all operational combustion lines for the month"]
["May",100,{"$f":"AVERAGE(L11,L26)","v":{"$error":"#DIV/0!"}},{"$error":"#DIV/0!"},50,null,null,null,null,null,"May"]
["Jun",100,{"$f":"AVERAGE(L12,L27)","v":{"$error":"#DIV/0!"}},{"$error":"#DIV/0!"},50,null,null,null,null,null,"Jun"]
["Jul",100,{"$f":"AVERAGE(L13,L28)","v":{"$error":"#DIV/0!"}},{"$error":"#DIV/0!"},50,null,null,null,null,null,"Jul",null,null,null,null,null,"Maximum: for 1/2 hourly and daily periods use the highest value across all operational combustion lines for the month"]
["Aug",100,{"$f":"AVERAGE(L14,L29)","v":{"$error":"#DIV/0!"}},{"$error":"#DIV/0!"},50,null,null,null,null,null,"Aug"]
["Sep",100,{"$f":"AVERAGE(L15,L30)","v":{"$error":"#DIV/0!"}},{"$error":"#DIV/0!"},50,null,null,null,null,null,"Sep"]
["Oct",100,{"$f":"AVERAGE(L16,L31)","v":{"$error":"#DIV/0!"}},{"$error":"#DIV/0!"},50,null,null,null,null,null,"Oct"]
["Nov",100,{"$f":"AVERAGE(L17,L32)","v":{"$error":"#DIV/0!"}},{"$error":"#DIV/0!"},50,null,null,null,null,null,"Nov"]
["Dec",100,{"$f":"AVERAGE(L18,L33)","v":{"$error":"#DIV/0!"}},{"$error":"#DIV/0!"},50,null,null,null,null,null,"Dec"]
[null,null,null,null,null,null,null,null,null,null,"Annual",{"$f":"AVERAGE(L7:L18)","v":0},{"$f":"MAX(M7:M18)","v":59},{"$f":"AVERAGE(N7:N18)","v":0},{"$f":"MAX(O7:O18)","v":3}]
[]
[null,null,null,null,null,null,null,null,null,{"$f":"+A6","v":2022},"mg/Nm3","Monthly 1/2 hourly mean","Monthly 1/2 hourly maximum","Monthly daily mean","Monthly daily maximum"]
[null,null,null,null,null,null,null,null,null,"A2","Jan",3,84,3,6]
[null,null,null,null,null,null,null,null,null,null,"Feb",2,7,2,3]
[null,null,null,null,null,null,null,null,null,null,"Mar"]
[null,null,null,null,null,null,null,null,null,null,"Apr"]
[null,null,null,null,null,null,null,null,null,null,"May"]
[null,null,null,null,null,null,null,null,null,null,"Jun"]
[null,null,null,null,null,null,null,null,null,null,"Jul"]
[null,null,null,null,null,null,null,null,null,null,"Aug"]
[null,null,null,null,null,null,null,null,null,null,"Sep"]
[null,null,null,null,null,null,null,null,null,null,"Oct"]
[null,null,null,null,null,null,null,null,null,null,"Nov"]
[null,null,null,null,null,null,null,null,null,null,"Dec"]
[null,null,null,null,null,null,null,null,null,null,"Annual",{"$f":"AVERAGE(L22:L33)","v":2.5},{"$f":"MAX(M22:M33)","v":84},{"$f":"AVERAGE(N22:N33)","v":2.5},{"$f":"MAX(O22:O33)","v":6}]
[]
[null,null,null,null,null,null,null,null,null,{"$f":"+A6","v":2022},"mg/Nm3","Monthly 1/2 hourly mean","Monthly 1/2 hourly maximum","Monthly daily mean","Monthly daily maximum"]
[null,null,null,null,null,null,null,null,null,"A3","Jan"]
[null,null,null,null,null,null,null,null,null,null,"Feb"]
[null,null,null,null,null,null,null,null,null,null,"Mar"]
[null,null,null,null,null,null,null,null,null,null,"Apr"]
[null,null,null,null,null,null,null,null,null,null,"May"]
[null,null,null,null,null,null,null,null,null,null,"Jun"]
[null,null,null,null,null,null,null,null,null,null,"Jul"]
[null,null,null,null,null,null,null,null,null,null,"Aug"]
[null,null,null,null,null,null,null,null,null,null,"Sep"]
[null,null,null,null,null,null,null,null,null,null,"Oct"]
[null,null,null,null,null,null,null,null,null,null,"Nov"]
["Comments :",null,null,null,null,null,null,null,null,null,"Dec"]
["A permit variation was issued during March 2022 in which the assessment of CO2 changed from half hourly averages to 10 minute averages. Data from March onwards is included on the next report tab.",null,null,null,null,null,null,null,null,null,"Annual",{"$f":"AVERAGE(L37:L48)","v":{"$error":"#DIV/0!"}},{"$f":"MAX(M37:M48)","v":0},{"$f":"AVERAGE(N37:N48)","v":{"$error":"#DIV/0!"}},{"$f":"MAX(O37:O48)","v":0}]
[]
[null,null,null,null,null,null,null,null,null,{"$f":"+A6","v":2022},"mg/Nm3","Monthly 1/2 hourly mean","Monthly 1/2 hourly maximum","Monthly daily mean","Monthly daily maximum"]
[null,null,null,null,null,null,null,null,null,"A4","Jan"]
[null,null,null,null,null,null,null,null,null,null,"Feb"]
[null,null,"2023-02-24",null,null,null,null,null,null,null,"Mar"]
[null,null,null,null,null,null,null,null,null,null,"Apr"]
[null,null,null,null,null,null,null,null,null,null,"May"]
[null,null,null,null,null,null,null,null,null,null,"Jun"]
[null,null,null,null,null,null,null,null,null,null,"Jul"]
[null,null,null,null,null,null,null,null,null,null,"Aug"]
[null,null,null,null,null,null,null,null,null,null,"Sep"]
[null,null,null,null,null,null,null,null,null,null,"Oct"]
[null,null,null,null,null,null,null,null,null,null,"Nov"]
[null,null,null,null,null,null,null,null,null,null,"Dec"]
[null,null,null,null,null,null,null,null,null,null,"Annual",{"$f":"AVERAGE(L52:L63)","v":{"$error":"#DIV/0!"}},{"$f":"MAX(M52:M63)","v":0},{"$f":"AVERAGE(N52:N63)","v":{"$error":"#DIV/0!"}},{"$f":"MAX(O52:O63)","v":0}]
[]
[null,null,null,null,null,null,null,null,null,{"$f":"+A6","v":2022},"mg/Nm3","Monthly 1/2 hourly mean","Monthly 1/2 hourly maximum","Monthly daily mean","Monthly daily maximum"]
[null,null,null,null,null,null,null,null,null,"A5","Jan"]
[null,null,null,null,null,null,null,null,null,null,"Feb"]
[null,null,null,null,null,null,null,null,null,null,"Mar"]
[null,null,null,null,null,null,null,null,null,null,"Apr"]
[null,null,null,null,null,null,null,null,null,null,"May"]
[null,null,null,null,null,null,null,null,null,null,"Jun"]
[null,null,null,null,null,null,null,null,null,null,"Jul"]
[null,null,null,null,null,null,null,null,null,null,"Aug"]
[null,null,null,null,null,null,null,null,null,null,"Sep"]
[null,null,null,null,null,null,null,null,null,null,"Oct"]
[null,null,null,null,null,null,null,null,null,null,"Nov"]
[null,null,null,null,null,null,null,null,null,null,"Dec"]
[null,null,null,null,null,null,null,null,null,null,"Annual",{"$f":"AVERAGE(L67:L78)","v":{"$error":"#DIV/0!"}},{"$f":"MAX(M67:M78)","v":0},{"$f":"AVERAGE(N67:N78)","v":{"$error":"#DIV/0!"}},{"$f":"MAX(O67:O78)","v":0}]

{"sheet":"CO 95% 10 min","index":21,"n_rows":79,"n_cols":19,"rows_kept":79,"cut":false,"hidden":false,"merged":[[3,18,7,20],[9,18,11,20],[12,18,15,20],[66,10,78,10],[4,1,4,4],[4,5,4,7],[4,10,4,16],[6,10,18,10],[21,10,33,10],[36,10,48,10],[47,0,47,7],[48,0,51,7],[51,10,63,10]]}
[{"$f":"+'Cover Page'!$B$30","v":"Annual Performance Report 2022"},null,null,null,{"$f":"+'Cover Page'!$B$34","v":"Cornwall Energy Recovery Centre"}]
[]
["Monitoring of Carbon Monoxide (10-minute avg)",null,null,null,"Whole Installation",null,null,"See  Notes in Cell S3",null,{"$f":"+A3","v":"Monitoring of Carbon Monoxide (10-minute avg)"},null,null,null,null,"Per Combustion Line",null,"Notes:",null,"Notes:"]
[null,null,null,null,null,null,null,null,null,null,null,null,null,null,null,null,null,null,"User to add logic to complete Whole installation, Table A5:H18. From the data in Per Combustion Line, Table K6:Q79, subject to No. of lines installed"]
["mg/Nm3","10-minute Reference Periods",null,null,null,"Daily Reference Periods"]
[{"$f":"+'Cover Page'!C40","v":2022},"95%ile 10-min avg CO ELV","95%ile 10-min avg maximum","Monthly CO 10-min avg mean","10-min avg maximum","Daily CO ELV","Monthly daily mean","Highest daily maximum",null,null,{"$f":"+A6","v":2022},"mg/Nm3","95%ile 10-min avg maximum","Monthly CO 10-min avg mean","10-min avg maximum","Monthly daily mean","Monthly daily maximum"]
["Jan",150,{"$f":"AVERAGE(M7,M22)","v":{"$error":"#DIV/0!"}},{"$f":"AVERAGE(N7,N22)","v":{"$error":"#DIV/0!"}},{"$error":"#DIV/0!"},50,{"$f":"AVERAGE(P7,P22)","v":{"$error":"#DIV/0!"}},{"$f":"AVERAGE(Q7,Q22)","v":{"$error":"#DIV/0!"}},null,null,"A1","Jan"]
["Feb",{"$f":"+B7","v":150},{"$f":"AVERAGE(M8,M23)","v":{"$error":"#DIV/0!"}},{"$f":"AVERAGE(N8,N23)","v":{"$error":"#DIV/0!"}},{"$f":"AVERAGE(O8,O23)","v":{"$error":"#DIV/0!"}},{"$f":"+F7","v":50},{"$f":"AVERAGE(P8,P23)","v":{"$error":"#DIV/0!"}},{"$error":"#DIV/0!"},null,null,null,"Feb"]
["Mar",{"$f":"+B8","v":150},6.5,1,100,{"$f":"+F8","v":50},{"$f":"AVERAGE(P9,P24)","v":1},3,null,null,null,"Mar",7,0,140,0,3,null,"Whole Installation table A5:H18:"]
["Apr",150,11.5,1.5,71,50,{"$f":"AVERAGE(P10,P25)","v":1.5},2.5,null,null,null,"Apr",11,0,107,0,1,null,"Mean: for 10-min and daily periods use average of all operational combustion lines."]
["May",150,5,1,73,50,{"$f":"AVERAGE(P11,P26)","v":1},1.5,null,null,null,"May",4,0,128,0,0]
["Jun",150,3.5,1,160.5,50,{"$f":"AVERAGE(P12,P27)","v":1},1.5,null,null,null,"Jun",1,0,211,0,0]
["Jul",150,15,1.5,210.5,50,{"$f":"AVERAGE(P13,P28)","v":1.5},5.5,null,null,null,"Jul",4,0,145,0,1,null,"Maximum: for 10-min and daily periods use the highest of all operational combustion lines in any month."]
["Aug",150,13,1.5,374.5,50,{"$f":"AVERAGE(P14,P29)","v":1.5},3,null,null,null,"Aug",4,0,123,0,0]
["Sep",150,6,1,185.5,50,{"$f":"AVERAGE(P15,P30)","v":1},4.5,null,null,null,"Sep",7,0,122,0,5]
["Oct",150,14,2.5,183.5,50,{"$f":"AVERAGE(P16,P31)","v":2.5},6.5,null,null,null,"Oct",8,1,107,1,5]
["Nov",150,11,2.5,246.5,50,{"$f":"AVERAGE(P17,P32)","v":2.5},5.5,null,null,null,"Nov",9,1,316,1,4]
["Dec",150,7.5,3.5,228.5,50,{"$f":"AVERAGE(P18,P33)","v":3.5},5,null,null,null,"Dec",7,2,165,2,3]
[null,null,null,null,null,null,null,null,null,null,null,"Annual",{"$f":"AVERAGE(M7:M18)","v":6.2},{"$f":"AVERAGE(N7:N18)","v":0.4},{"$f":"MAX(O7:O18)","v":316},{"$f":"AVERAGE(P7:P18)","v":0.4},{"$f":"MAX(Q7:Q18)","v":5}]
[]
[null,null,null,null,null,null,null,null,null,null,{"$f":"+A6","v":2022},"mg/Nm3","95%ile 10-min avg maximum","Monthly CO 10-min avg mean","10-min avg maximum","Monthly daily mean","Monthly daily maximum"]
[null,null,null,null,null,null,null,null,null,null,"A2","Jan"]
[null,null,null,null,null,null,null,null,null,null,null,"Feb"]
[null,null,null,null,null,null,null,null,null,null,null,"Mar",6,2,60,2,3]
[null,null,null,null,null,null,null,null,null,null,null,"Apr",12,3,35,3,4]
[null,null,null,null,null,null,null,null,null,null,null,"May",6,2,18,2,3]
[null,null,null,null,null,null,null,null,null,null,null,"Jun",6,2,110,2,3]
[null,null,null,null,null,null,null,null,null,null,null,"Jul",26,3,276,3,10]
[null,null,null,null,null,null,null,null,null,null,null,"Aug",22,3,626,3,6]
[null,null,null,null,null,null,null,null,null,null,null,"Sep",5,2,249,2,4]
[null,null,null,null,null,null,null,null,null,null,null,"Oct",20,4,260,4,8]
[null,null,null,null,null,null,null,null,null,null,null,"Nov",13,4,177,4,7]
[null,null,null,null,null,null,null,null,null,null,null,"Dec",8,5,292,5,7]
[null,null,null,null,null,null,null,null,null,null,null,"Annual",{"$f":"AVERAGE(M22:M33)","v":12.4},{"$f":"AVERAGE(N22:N33)","v":3},{"$f":"MAX(O22:O33)","v":626},{"$f":"AVERAGE(P22:P33)","v":3},{"$f":"MAX(Q22:Q33)","v":10}]
[]
[null,null,null,null,null,null,null,null,null,null,{"$f":"+A6","v":2022},"mg/Nm3","95%ile 10-min avg maximum","Monthly CO 10-min avg mean","10-min avg maximum","Monthly daily mean","Monthly daily maximum"]
[null,null,null,null,null,null,null,null,null,null,"A3","Jan"]
[null,null,null,null,null,null,null,null,null,null,null,"Feb"]
[null,null,null,null,null,null,null,null,null,null,null,"Mar"]
[null,null,null,null,null,null,null,null,null,null,null,"Apr"]
[null,null,null,null,null,null,null,null,null,null,null,"May"]
[null,null,null,null,null,null,null,null,null,null,null,"Jun"]
[null,null,null,null,null,null,null,null,null,null,null,"Jul"]
[null,null,null,null,null,null,null,null,null,null,null,"Aug"]
[null,null,null,null,null,null,null,null,null,null,null,"Sep"]
[null,null,null,null,null,null,null,null,null,null,null,"Oct"]
[null,null,null,null,null,null,null,null,null,null,null,"Nov"]
["Comments :",null,null,null,null,null,null,null,null,null,null,"Dec"]
["Environment Agency explanatory note: The 10-minute average ELV is based on the “95th percentile”. In this case this means that 95% of the 10 minute averages in the relevant 24-hour period (i.e. 137) must be below 150 mg/Nm3, and 5% (i.e. 7) are allowed to be any value above 150 mg/Nm3. Whilst we expect operators to minimise CO emissions at all times, it is perfectly acceptable for the value of the maximum 10-minute average to be above 150 mg/Nm3, provided the 95th percentile ELV has been met for that period. ",null,null,null,null,null,null,null,null,null,null,"Annual",{"$f":"AVERAGE(M37:M48)","v":{"$error":"#DIV/0!"}},null,{"$f":"MAX(O37:O48)","v":0},{"$f":"AVERAGE(P37:P48)","v":{"$error":"#DIV/0!"}},{"$f":"MAX(Q37:Q48)","v":0}]
[]
[null,null,null,null,null,null,null,null,null,null,{"$f":"+A6","v":2022},"mg/Nm3","95%ile 10-min avg maximum","Monthly CO 10-min avg mean","10-min avg maximum","Monthly daily mean","Monthly daily maximum"]
[null,null,null,null,null,null,null,null,null,null,"A4","Jan"]
[null,null,null,null,null,null,null,null,null,null,null,"Feb"]
[null,null,"2023-02-24",null,null,null,null,null,null,null,null,"Mar"]
[null,null,null,null,null,null,null,null,null,null,null,"Apr"]
[null,null,null,null,null,null,null,null,null,null,null,"May"]
[null,null,null,null,null,null,null,null,null,null,null,"Jun"]
[null,null,null,null,null,null,null,null,null,null,null,"Jul"]
[null,null,null,null,null,null,null,null,null,null,null,"Aug"]
[null,null,null,null,null,null,null,null,null,null,null,"Sep"]
[null,null,null,null,null,null,null,null,null,null,null,"Oct"]
[null,null,null,null,null,null,null,null,null,null,null,"Nov"]
[null,null,null,null,null,null,null,null,null,null,null,"Dec"]
[null,null,null,null,null,null,null,null,null,null,null,"Annual",{"$f":"AVERAGE(M52:M63)","v":{"$error":"#DIV/0!"}},null,{"$f":"MAX(O52:O63)","v":0},{"$f":"AVERAGE(P52:P63)","v":{"$error":"#DIV/0!"}},{"$f":"MAX(Q52:Q63)","v":0}]
[]
[null,null,null,null,null,null,null,null,null,null,{"$f":"+A6","v":2022},"mg/Nm3","95%ile 10-min avg maximum","Monthly CO 10-min avg mean","10-min avg maximum","Monthly daily mean","Monthly daily maximum"]
[null,null,null,null,null,null,null,null,null,null,"A5","Jan"]
[null,null,null,null,null,null,null,null,null,null,null,"Feb"]
[null,null,null,null,null,null,null,null,null,null,null,"Mar"]
[null,null,null,null,null,null,null,null,null,null,null,"Apr"]
[null,null,null,null,null,null,null,null,null,null,null,"May"]
[null,null,null,null,null,null,null,null,null,null,null,"Jun"]
[null,null,null,null,null,null,null,null,null,null,null,"Jul"]
[null,null,null,null,null,null,null,null,null,null,null,"Aug"]
[null,null,null,null,null,null,null,null,null,null,null,"Sep"]
[null,null,null,null,null,null,null,null,null,null,null,"Oct"]
[null,null,null,null,null,null,null,null,null,null,null,"Nov"]
[null,null,null,null,null,null,null,null,null,null,null,"Dec"]
[null,null,null,null,null,null,null,null,null,null,null,"Annual",{"$f":"AVERAGE(M67:M78)","v":{"$error":"#DIV/0!"}},null,{"$f":"MAX(O67:O78)","v":0},{"$f":"AVERAGE(P67:P78)","v":{"$error":"#DIV/0!"}},{"$f":"MAX(Q67:Q78)","v":0}]

{"sheet":"NH3","index":22,"n_rows":79,"n_cols":17,"rows_kept":79,"cut":false,"hidden":false,"merged":[[3,16,7,18],[9,16,11,18],[12,16,15,18],[66,9,78,9],[4,1,4,3],[4,4,4,6],[4,9,4,14],[6,9,18,9],[21,9,33,9],[36,9,48,9],[47,0,47,6],[48,0,51,6],[51,9,63,9]]}
[{"$f":"+'Cover Page'!$B$30","v":"Annual Performance Report 2022"},null,null,null,{"$f":"+'Cover Page'!$B$34","v":"Cornwall Energy Recovery Centre"}]
[]
["Monitoring of Ammonia emissions ",null,null,"Whole Installation",null,null,"See  Notes in Cell Q3",null,null,{"$f":"+A3","v":"Monitoring of Ammonia emissions "},null,null,null,"Per Combustion Line",null,null,"Notes:"]
[null,null,null,null,null,null,null,null,null,null,null,null,null,null,null,null,"User to add logic to complete Whole installation, Table A5:G18. From the data in Per Combustion Line, Table J6:O79, subject to No. of lines installed"]
["mg/Nm3","1/2 Hourly Reference Periods",null,null,"Daily Reference Periods"]
[{"$f":"+'Cover Page'!C40","v":2022},"1/2 hourly NH3 ELV","Monthly 1/2 hourly mean","Highest 1/2 hourly maximum","Daily NH3 ELV","Monthly daily mean","Highest daily maximum",null,null,{"$f":"+A6","v":2022},"mg/Nm3","Monthly 1/2 hourly mean","Monthly 1/2 hourly maximum","Monthly daily mean","Monthly daily maximum"]
["Jan",0,{"$f":"AVERAGE(L7,L22)","v":0},{"$f":"AVERAGE(M7,M22)","v":0.25},10,{"$f":"AVERAGE(N7,N22)","v":0},{"$f":"AVERAGE(O7,O22)","v":0.05},null,null,"A1","Jan",0,0.1,0,0]
["Feb",{"$f":"+B7","v":0},{"$f":"AVERAGE(L8,L23)","v":0},0.05,{"$f":"+E7","v":10},{"$f":"AVERAGE(N8,N23)","v":0},0,null,null,null,"Feb",0,0.1,0,0]
["Mar",{"$f":"+B8","v":0},{"$f":"AVERAGE(L9,L24)","v":0},0.65,{"$f":"+E8","v":10},{"$f":"AVERAGE(N9,N24)","v":0},0,null,null,null,"Mar",0,0.2,0,0,null,"Whole Installation table A5:G18:"]
["Apr",0,{"$f":"AVERAGE(L10,L25)","v":0},0.15000000000000002,10,{"$f":"AVERAGE(N10,N25)","v":0},0.05,null,null,null,"Apr",0,0.2,0,0.1,null,"Mean: for 1/2 hourly and daily periods calculate mean of values across all operational combustion lines for the month"]
["May",0,{"$f":"AVERAGE(L11,L26)","v":0},0.7,10,{"$f":"AVERAGE(N11,N26)","v":0},0.15000000000000002,null,null,null,"May",0,0.4,0,0.1]
["Jun",0,{"$f":"AVERAGE(L12,L27)","v":0},0.15000000000000002,10,{"$f":"AVERAGE(N12,N27)","v":0},0.05,null,null,null,"Jun",0,0.1,0,0.1]
["Jul",0,{"$f":"AVERAGE(L13,L28)","v":0.05},0.2,10,{"$f":"AVERAGE(N13,N28)","v":0.05},0.05,null,null,null,"Jul",0.1,0.1,0.1,0.1,null,"Maximum: for 1/2 hourly and daily periods use the highest value across all operational combustion lines for the month"]
["Aug",0,{"$f":"AVERAGE(L14,L29)","v":0.05},1.1000000000000001,10,{"$f":"AVERAGE(N14,N29)","v":0.05},0.1,null,null,null,"Aug",0.1,0.1,0.1,0.1]
["Sep",0,{"$f":"AVERAGE(L15,L30)","v":0.05},0.15000000000000002,10,{"$f":"AVERAGE(N15,N30)","v":0.05},0.05,null,null,null,"Sep",0.1,0.2,0.1,0.1]
["Oct",0,{"$f":"AVERAGE(L16,L31)","v":0.05},0.2,10,{"$f":"AVERAGE(N16,N31)","v":0.05},0.05,null,null,null,"Oct",0.1,0.2,0.1,0.1]
["Nov",0,{"$f":"AVERAGE(L17,L32)","v":0.05},0.15000000000000002,10,{"$f":"AVERAGE(N17,N32)","v":0.05},0.05,null,null,null,"Nov",0.1,0.2,0.1,0.1]
["Dec",0,{"$f":"AVERAGE(L18,L33)","v":0},0.15000000000000002,10,{"$f":"AVERAGE(N18,N33)","v":0},0.05,null,null,null,"Dec",0,0.2,0,0.1]
[null,null,null,null,null,null,null,null,null,null,"Annual",{"$f":"AVERAGE(L7:L18)","v":4.1666666666666664E-2},{"$f":"MAX(M7:M18)","v":0.4},{"$f":"AVERAGE(N7:N18)","v":4.1666666666666664E-2},{"$f":"MAX(O7:O18)","v":0.1}]
[]
[null,null,null,null,null,null,null,null,null,{"$f":"+A6","v":2022},"mg/Nm3","Monthly 1/2 hourly mean","Monthly 1/2 hourly maximum","Monthly daily mean","Monthly daily maximum"]
[null,null,null,null,null,null,null,null,null,"A2","Jan",0,0.4,0,0.1]
[null,null,null,null,null,null,null,null,null,null,"Feb",0,0,0,0]
[null,null,null,null,null,null,null,null,null,null,"Mar",0,1.1000000000000001,0,0]
[null,null,null,null,null,null,null,null,null,null,"Apr",0,0.1,0,0]
[null,null,null,null,null,null,null,null,null,null,"May",0,1,0,0.2]
[null,null,null,null,null,null,null,null,null,null,"Jun",0,0.2,0,0]
[null,null,null,null,null,null,null,null,null,null,"Jul",0,0.3,0,0]
[null,null,null,null,null,null,null,null,null,null,"Aug",0,2.1,0,0.1]
[null,null,null,null,null,null,null,null,null,null,"Sep",0,0.1,0,0]
[null,null,null,null,null,null,null,null,null,null,"Oct",0,0.2,0,0]
[null,null,null,null,null,null,null,null,null,null,"Nov",0,0.1,0,0]
[null,null,null,null,null,null,null,null,null,null,"Dec",0,0.1,0,0]
[null,null,null,null,null,null,null,null,null,null,"Annual",{"$f":"AVERAGE(L22:L33)","v":0},{"$f":"MAX(M22:M33)","v":2.1},{"$f":"AVERAGE(N22:N33)","v":0},{"$f":"MAX(O22:O33)","v":0.2}]
[]
[null,null,null,null,null,null,null,null,null,{"$f":"+A6","v":2022},"mg/Nm3","Monthly 1/2 hourly mean","Monthly 1/2 hourly maximum","Monthly daily mean","Monthly daily maximum"]
[null,null,null,null,null,null,null,null,null,"A3","Jan"]
[null,null,null,null,null,null,null,null,null,null,"Feb"]
[null,null,null,null,null,null,null,null,null,null,"Mar"]
[null,null,null,null,null,null,null,null,null,null,"Apr"]
[null,null,null,null,null,null,null,null,null,null,"May"]
[null,null,null,null,null,null,null,null,null,null,"Jun"]
[null,null,null,null,null,null,null,null,null,null,"Jul"]
[null,null,null,null,null,null,null,null,null,null,"Aug"]
[null,null,null,null,null,null,null,null,null,null,"Sep"]
[null,null,null,null,null,null,null,null,null,null,"Oct"]
[null,null,null,null,null,null,null,null,null,null,"Nov"]
["Comments :",null,null,null,null,null,null,null,null,null,"Dec"]
["An indicated ELV value of zero in the table above means that no ammonia limit is set in the permit.  ",null,null,null,null,null,null,null,null,null,"Annual",{"$f":"AVERAGE(L37:L48)","v":{"$error":"#DIV/0!"}},{"$f":"MAX(M37:M48)","v":0},{"$f":"AVERAGE(N37:N48)","v":{"$error":"#DIV/0!"}},{"$f":"MAX(O37:O48)","v":0}]
[]
[null,null,null,null,null,null,null,null,null,{"$f":"+A6","v":2022},"mg/Nm3","Monthly 1/2 hourly mean","Monthly 1/2 hourly maximum","Monthly daily mean","Monthly daily maximum"]
[null,null,null,null,null,null,null,null,null,"A4","Jan"]
[null,null,null,null,null,null,null,null,null,null,"Feb"]
[null,null,"2023-02-24",null,null,null,null,null,null,null,"Mar"]
[null,null,null,null,null,null,null,null,null,null,"Apr"]
[null,null,null,null,null,null,null,null,null,null,"May"]
[null,null,null,null,null,null,null,null,null,null,"Jun"]
[null,null,null,null,null,null,null,null,null,null,"Jul"]
[null,null,null,null,null,null,null,null,null,null,"Aug"]
[null,null,null,null,null,null,null,null,null,null,"Sep"]
[null,null,null,null,null,null,null,null,null,null,"Oct"]
[null,null,null,null,null,null,null,null,null,null,"Nov"]
[null,null,null,null,null,null,null,null,null,null,"Dec"]
[null,null,null,null,null,null,null,null,null,null,"Annual",{"$f":"AVERAGE(L52:L63)","v":{"$error":"#DIV/0!"}},{"$f":"MAX(M52:M63)","v":0},{"$f":"AVERAGE(N52:N63)","v":{"$error":"#DIV/0!"}},{"$f":"MAX(O52:O63)","v":0}]
[]
[null,null,null,null,null,null,null,null,null,{"$f":"+A6","v":2022},"mg/Nm3","Monthly 1/2 hourly mean","Monthly 1/2 hourly maximum","Monthly daily mean","Monthly daily maximum"]
[null,null,null,null,null,null,null,null,null,"A5","Jan"]
[null,null,null,null,null,null,null,null,null,null,"Feb"]
[null,null,null,null,null,null,null,null,null,null,"Mar"]
[null,null,null,null,null,null,null,null,null,null,"Apr"]
[null,null,null,null,null,null,null,null,null,null,"May"]
[null,null,null,null,null,null,null,null,null,null,"Jun"]
[null,null,null,null,null,null,null,null,null,null,"Jul"]
[null,null,null,null,null,null,null,null,null,null,"Aug"]
[null,null,null,null,null,null,null,null,null,null,"Sep"]
[null,null,null,null,null,null,null,null,null,null,"Oct"]
[null,null,null,null,null,null,null,null,null,null,"Nov"]
[null,null,null,null,null,null,null,null,null,null,"Dec"]
[null,null,null,null,null,null,null,null,null,null,"Annual",{"$f":"AVERAGE(L67:L78)","v":{"$error":"#DIV/0!"}},{"$f":"MAX(M67:M78)","v":0},{"$f":"AVERAGE(N67:N78)","v":{"$error":"#DIV/0!"}},{"$f":"MAX(O67:O78)","v":0}]

{"sheet":"HF","index":23,"n_rows":79,"n_cols":17,"rows_kept":79,"cut":false,"hidden":false,"merged":[[66,9,78,9],[3,16,7,18],[4,1,4,3],[4,4,4,6],[4,9,4,14],[6,9,18,9],[9,16,11,18],[12,16,15,18],[21,9,33,9],[36,9,48,9],[47,0,47,6],[48,0,51,6],[51,9,63,9]]}
[{"$f":"+'Cover Page'!$B$30","v":"Annual Performance Report 2022"},null,null,null,{"$f":"+'Cover Page'!$B$34","v":"Cornwall Energy Recovery Centre"}]
[]
["Monitoring of Hydrogen Fluoride emissions ",null,null,"Whole Installation",null,null,"See  Notes in Cell Q3",null,null,{"$f":"+A3","v":"Monitoring of Hydrogen Fluoride emissions "},null,null,null,"Per Combustion Line",null,null,"Notes:"]
[null,null,null,null,null,null,null,null,null,null,null,null,null,null,null,null,"User to add logic to complete Whole installation, Table A5:G18. From the data in Per Combustion Line, Table J6:O79, subject to No. of lines installed"]
["mg/Nm3","1/2 Hourly Reference Periods",null,null,"Daily Reference Periods"]
[{"$f":"+'Cover Page'!C40","v":2022},"1/2 hourly HF ELV","Monthly 1/2 hourly mean","Highest 1/2 hourly maximum","Daily HF ELV","Monthly daily mean","Highest daily maximum",null,null,{"$f":"+A6","v":2022},"mg/Nm3","Monthly 1/2 hourly mean","Monthly 1/2 hourly maximum","Monthly daily mean","Monthly daily maximum"]
["Jan",4,{"$f":"AVERAGE(L7,L22)","v":0},{"$f":"AVERAGE(M7,M22)","v":0.25},1,{"$f":"AVERAGE(N7,N22)","v":0},{"$f":"AVERAGE(O7,O22)","v":0.15},null,null,"A1","Jan",0,0,0,0]
["Feb",4,{"$f":"AVERAGE(L8,L23)","v":0.05},0.35,{"$f":"+E7","v":1},{"$f":"AVERAGE(N8,N23)","v":0.05},0.3,null,null,null,"Feb",0,0,0,0]
["Mar",4,{"$f":"AVERAGE(L9,L24)","v":0.15},0.75,{"$f":"+E8","v":1},{"$f":"AVERAGE(N9,N24)","v":0.15},0.25,null,null,null,"Mar",0,0.7,0,0,null,"Whole Installation table A5:G18:"]
["Apr",4,{"$f":"AVERAGE(L10,L25)","v":0},0.6,1,{"$f":"AVERAGE(N10,N25)","v":0},0.1,null,null,null,"Apr",0,0.5,0,0.1,null,"Mean: for 1/2 hourly and daily periods calculate mean of values across all operational combustion lines for the month"]
["May",4,{"$f":"AVERAGE(L11,L26)","v":0},1.2000000000000002,1,{"$f":"AVERAGE(N11,N26)","v":0},0.4,null,null,null,"May",0,1.1000000000000001,0,0]
["Jun",{"$f":"+B11","v":4},{"$f":"AVERAGE(L12,L27)","v":0},1,1,{"$f":"AVERAGE(N12,N27)","v":0},0.15000000000000002,null,null,null,"Jun",0,0.9,0,0.1]
["Jul",4,{"$f":"AVERAGE(L13,L28)","v":0},1.1499999999999999,1,{"$f":"AVERAGE(N13,N28)","v":0},0.15000000000000002,null,null,null,"Jul",0,1.1000000000000001,0,0.2,null,"Maximum: for 1/2 hourly and daily periods use the highest value across all operational combustion lines for the month"]
["Aug",4,{"$f":"AVERAGE(L14,L29)","v":0.05},1.5,1,{"$f":"AVERAGE(N14,N29)","v":0.05},0.25,null,null,null,"Aug",0.1,1.6,0.1,0.3]
["Sep",4,{"$f":"AVERAGE(L15,L30)","v":0},0.55000000000000004,1,{"$f":"AVERAGE(N15,N30)","v":0},0.15000000000000002,null,null,null,"Sep",0,0.7,0,0.2]
["Oct",4,{"$f":"AVERAGE(L16,L31)","v":0},0.6,1,{"$f":"AVERAGE(N16,N31)","v":0},0,null,null,null,"Oct",0,0.6,0,0]
["Nov",4,{"$f":"AVERAGE(L17,L32)","v":0},0.5,1,{"$f":"AVERAGE(N17,N32)","v":0},0.05,null,null,null,"Nov",0,0.5,0,0]
["Dec",4,{"$f":"AVERAGE(L18,L33)","v":0},0.5,1,{"$f":"AVERAGE(N18,N33)","v":0},0,null,null,null,"Dec",0,0.4,0,0]
[null,null,null,null,null,null,null,null,null,null,"Annual",{"$f":"AVERAGE(L7:L18)","v":8.3333333333333332E-3},{"$f":"MAX(M7:M18)","v":1.6},{"$f":"AVERAGE(N7:N18)","v":8.3333333333333332E-3},{"$f":"MAX(O7:O18)","v":0.3}]
[]
[null,null,null,null,null,null,null,null,null,{"$f":"+A6","v":2022},"mg/Nm3","Monthly 1/2 hourly mean","Monthly 1/2 hourly maximum","Monthly daily mean","Monthly daily maximum"]
[null,null,null,null,null,null,null,null,null,"A2","Jan",0,0.5,0,0.3]
[null,null,null,null,null,null,null,null,null,null,"Feb",0.1,0.7,0.1,0.6]
[null,null,null,null,null,null,null,null,null,null,"Mar",0.3,0.8,0.3,0.5]
[null,null,null,null,null,null,null,null,null,null,"Apr",0,0.7,0,0.1]
[null,null,null,null,null,null,null,null,null,null,"May",0,1.3,0,0.8]
[null,null,null,null,null,null,null,null,null,null,"Jun",0,1.1000000000000001,0,0.2]
[null,null,null,null,null,null,null,null,null,null,"Jul",0,1.2,0,0.1]
[null,null,null,null,null,null,null,null,null,null,"Aug",0,1.4,0,0.2]
[null,null,null,null,null,null,null,null,null,null,"Sep",0,0.4,0,0.1]
[null,null,null,null,null,null,null,null,null,null,"Oct",0,0.6,0,0]
[null,null,null,null,null,null,null,null,null,null,"Nov",0,0.5,0,0.1]
[null,null,null,null,null,null,null,null,null,null,"Dec",0,0.6,0,0]
[null,null,null,null,null,null,null,null,null,null,"Annual",{"$f":"AVERAGE(L22:L33)","v":3.3333333333333333E-2},{"$f":"MAX(M22:M33)","v":1.4},{"$f":"AVERAGE(N22:N33)","v":3.3333333333333333E-2},{"$f":"MAX(O22:O33)","v":0.8}]
[]
[null,null,null,null,null,null,null,null,null,{"$f":"+A6","v":2022},"mg/Nm3","Monthly 1/2 hourly mean","Monthly 1/2 hourly maximum","Monthly daily mean","Monthly daily maximum"]
[null,null,null,null,null,null,null,null,null,"A3","Jan"]
[null,null,null,null,null,null,null,null,null,null,"Feb"]
[null,null,null,null,null,null,null,null,null,null,"Mar"]
[null,null,null,null,null,null,null,null,null,null,"Apr"]
[null,null,null,null,null,null,null,null,null,null,"May"]
[null,null,null,null,null,null,null,null,null,null,"Jun"]
[null,null,null,null,null,null,null,null,null,null,"Jul"]
[null,null,null,null,null,null,null,null,null,null,"Aug"]
[null,null,null,null,null,null,null,null,null,null,"Sep"]
[null,null,null,null,null,null,null,null,null,null,"Oct"]
[null,null,null,null,null,null,null,null,null,null,"Nov"]
["Comments :",null,null,null,null,null,null,null,null,null,"Dec"]
[null,null,null,null,null,null,null,null,null,null,"Annual",{"$f":"AVERAGE(L37:L48)","v":{"$error":"#DIV/0!"}},{"$f":"MAX(M37:M48)","v":0},{"$f":"AVERAGE(N37:N48)","v":{"$error":"#DIV/0!"}},{"$f":"MAX(O37:O48)","v":0}]
[]
[null,null,null,null,null,null,null,null,null,{"$f":"+A6","v":2022},"mg/Nm3","Monthly 1/2 hourly mean","Monthly 1/2 hourly maximum","Monthly daily mean","Monthly daily maximum"]
[null,null,null,null,null,null,null,null,null,"A4","Jan"]
[null,null,null,null,null,null,null,null,null,null,"Feb"]
[null,null,"2023-02-24",null,null,null,null,null,null,null,"Mar"]
[null,null,null,null,null,null,null,null,null,null,"Apr"]
[null,null,null,null,null,null,null,null,null,null,"May"]
[null,null,null,null,null,null,null,null,null,null,"Jun"]
[null,null,null,null,null,null,null,null,null,null,"Jul"]
[null,null,null,null,null,null,null,null,null,null,"Aug"]
[null,null,null,null,null,null,null,null,null,null,"Sep"]
[null,null,null,null,null,null,null,null,null,null,"Oct"]
[null,null,null,null,null,null,null,null,null,null,"Nov"]
[null,null,null,null,null,null,null,null,null,null,"Dec"]
[null,null,null,null,null,null,null,null,null,null,"Annual",{"$f":"AVERAGE(L52:L63)","v":{"$error":"#DIV/0!"}},{"$f":"MAX(M52:M63)","v":0},{"$f":"AVERAGE(N52:N63)","v":{"$error":"#DIV/0!"}},{"$f":"MAX(O52:O63)","v":0}]
[]
[null,null,null,null,null,null,null,null,null,{"$f":"+A6","v":2022},"mg/Nm3","Monthly 1/2 hourly mean","Monthly 1/2 hourly maximum","Monthly daily mean","Monthly daily maximum"]
[null,null,null,null,null,null,null,null,null,"A5","Jan"]
[null,null,null,null,null,null,null,null,null,null,"Feb"]
[null,null,null,null,null,null,null,null,null,null,"Mar"]
[null,null,null,null,null,null,null,null,null,null,"Apr"]
[null,null,null,null,null,null,null,null,null,null,"May"]
[null,null,null,null,null,null,null,null,null,null,"Jun"]
[null,null,null,null,null,null,null,null,null,null,"Jul"]
[null,null,null,null,null,null,null,null,null,null,"Aug"]
[null,null,null,null,null,null,null,null,null,null,"Sep"]
[null,null,null,null,null,null,null,null,null,null,"Oct"]
[null,null,null,null,null,null,null,null,null,null,"Nov"]
[null,null,null,null,null,null,null,null,null,null,"Dec"]
[null,null,null,null,null,null,null,null,null,null,"Annual",{"$f":"AVERAGE(L67:L78)","v":{"$error":"#DIV/0!"}},{"$f":"MAX(M67:M78)","v":0},{"$f":"AVERAGE(N67:N78)","v":{"$error":"#DIV/0!"}},{"$f":"MAX(O67:O78)","v":0}]